{"text_format":"1","workbook":"xlsx","n_sheets":6,"sheets":["Matrix","Att A","Link Data A","Link Data A1","Att D","Link Data D"],"not_rendered":{"charts":0,"images":2,"macros":1,"external_links":0,"defined_names":4,"comments":0,"pivot_tables":0},"unopened":[],"bounds":{"document_bytes":16777216,"sheet_cells":100000,"rows_first":2000,"rows_last":500,"rows_between":2000,"halvings":0,"cell_chars":16384,"cell_head_chars":4096},"cells_cut":0,"cells_raw":0,"read":"whole","date_system":"1900"}

{"sheet":"Matrix","index":0,"n_rows":504,"n_cols":259,"rows_kept":504,"cut":false,"hidden":false,"merged":[[1,175,3,210],[4,175,6,210],[8,162,9,210],[11,162,13,174],[11,175,13,179],[11,181,13,197],[11,198,13,209],[21,69,24,74],[21,81,24,89],[4,48,7,142],[8,48,11,142],[12,48,14,142],[21,96,24,103],[19,107,22,208],[44,216,49,223],[49,4,52,104],[40,4,42,14],[40,49,42,60],[40,107,42,129],[40,175,42,185],[72,188,75,209],[36,4,39,46],[30,107,32,131],[30,175,32,192],[34,175,39,208],[56,144,58,176],[59,144,60,176],[56,177,58,209],[89,238,97,242],[76,238,87,242],[76,177,86,209],[78,247,83,267],[79,5,82,129],[83,4,86,129],[76,3,78,129],[126,238,129,242],[100,3,102,129],[100,238,114,242],[103,5,110,129],[111,4,114,129],[116,3,118,129],[116,195,123,209],[116,238,123,242],[119,5,119,129],[120,4,123,129],[100,144,114,176],[130,238,133,242],[162,228,168,235],[162,237,168,302],[170,228,173,235],[170,237,173,294],[147,255,149,312],[156,238,158,243],[156,248,158,253],[156,258,158,261],[161,238,161,247],[161,254,161,298],[145,238,145,242],[147,238,150,246],[134,238,137,242],[134,249,137,252],[18,65,20,105],[22,66,24,68],[134,221,137,226],[61,144,64,176],[65,144,70,176],[76,144,86,176],[100,177,114,209],[61,177,70,209],[72,3,75,129],[32,4,35,104],[34,107,39,172],[44,4,48,84],[44,107,54,148],[44,168,54,208],[56,130,70,143],[56,3,70,129],[59,177,60,209],[23,107,29,172],[23,175,29,208],[27,66,29,68],[36,92,39,104],[40,92,42,100],[36,85,39,90],[36,48,39,83],[40,85,42,90],[27,69,29,81],[23,4,29,63],[22,77,24,80],[22,93,24,95],[18,4,22,51],[27,82,29,84],[26,85,29,104]]}
[]
[null,null,null,null,null,null,null,null,null,null,null,null,null,null,null,null,null,null,null,null,null,null,null,null,null,null,null,null,null,null,null,null,null,null,null,null,null,null,null,null,null,null,null,null,null,null,null,null,null,null,null,null,null,null,null,null,null,null,null,null,null,null,null,null,null,null,null,null,null,null,null,null,null,null,null,null,null,null,null,null,null,null,null,null,null,null,null,null,null,null,null,null,null,null,null,null,null,null,null,null,null,null,null,null,null,null,null,null,null,null,null,null,null,null,null,null,null,null,null,null,null,null,null,null,null,null,null,null,null,null,null,null,null,null,null,null,null,null,null,null,null,null,null,null,null,null,null,null,null,null,null,null,null,null,null,null,null,null,null,null,null,null,null,null,null,null,null,null,null,null,null,null,null,null,null,"DUE DATE"]
[]
[]
[null,null,null,null,null,null,null,null,null,null,null,null,null,null,null,null,null,null,null,null,null,null,null,null,null,null,null,null,null,null,null,null,null,null,null,null,null,null,null,null,null,null,null,null,null,null,null,null,"APR MATRIX",null,null,null,null,null,null,null,null,null,null,null,null,null,null,null,null,null,null,null,null,null,null,null,null,null,null,null,null,null,null,null,null,null,null,null,null,null,null,null,null,null,null,null,null,null,null,null,null,null,null,null,null,null,null,null,null,null,null,null,null,null,null,null,null,null,null,null,null,null,null,null,null,null,null,null,null,null,null,null,null,null,null,null,null,null,null,null,null,null,null,null,null,null,null,null,null,null,null,null,null,null,null,null,null,null,null,null,null,null,null,null,null,null,null,null,null,null,null,null,null,null,null,null,null,null,null,"Friday, July 11, 2025"]
["           "]
[]
[]
["             ",null,null,null,null,null,null,null,null,null,null,null,null,null,null,null,null,null,null,null,null,null,null,null,null,null,null,null,null,null,null,null,null,null,null,null,null,null,null,null,null,null,null,null,null,null,null,null,"HOME Annual Performance Report",null,null,null,null,null,null,null,null,null,null,null,null,null,null,null,null,null,null,null,null,null,null,null,null,null,null,null,null,null,null,null,null,null,null,null,null,null,null,null,null,null,null,null,null,null,null,null,null,null,null,null,null,null,null,null,null,null,null,null,null,null,null,null,null,null,null,null,null,null,null,null,null,null,null,null,null,null,null,null,null,null,null,null,null,null,null,null,null,null,null,null,null,null,null,null,null,null,null,null,null,null,null,null,null,null,null,null,null,null,null,null,null,null,"For HOME Award Recipient USE ONLY"]
[]
[]
[null,null,null,null,null,null,null,null,null,null,null,null,null,null,null,null,null,null,null,null,null,null,null,null,null,null,null,null,null,null,null,null,null,null,null,null,null,null,null,null,null,null,null,null,null,null,null,null,null,null,null,null,null,null,null,null,null,null,null,null,null,null,null,null,null,null,null,null,null,null,null,null,null,null,null,null,null,null,null,null,null,null,null,null,null,null,null,null,null,null,null,null,null,null,null,null,null,null,null,null,null,null,null,null,null,null,null,null,null,null,null,null,null,null,null,null,null,null,null,null,null,null,null,null,null,null,null,null,null,null,null,null,null,null,null,null,null,null,null,null,null,null,null,null,null,null,null,null,null,null,null,null,null,null,null,null,null,null,null,null,null,null,"Revision #",null,null,null,null,null,null,null,null,null,null,null,null,null,null,null,null,null,null,"Date of Submittal"]
[null,null,null,null,null,null,null,null,null,null,null,null,null,null,null,null,null,null,null,null,null,null,null,null,null,null,null,null,null,null,null,null,null,null,null,null,null,null,null,null,null,null,null,null,null,null,null,null,"Reporting Period July 1, 2024 through June 30, 2025"]
[]
[]
[]
[]
[]
[null,null,null,null,"1. Name of the HOME Award Recipient",null,null,null,null,null,null,null,null,null,null,null,null,null,null,null,null,null,null,null,null,null,null,null,null,null,null,null,null,null,null,null,null,null,null,null,null,null,null,null,null,null,null,null,null,null,null,null,null,null,null,null,null,null,null,null,null,null,null,null,null,"Please select one"]
[null,null,null,null,null,null,null,null,null,null,null,null,null,null,null,null,null,null,null,null,null,null,null,null,null,null,null,null,null,null,null,null,null,null,null,null,null,null,null,null,null,null,null,null,null,null,null,null,null,null,null,null,null,null,null,null,null,null,null,null,null,null,null,null,null,null,null,null,null,null,null,null,null,null,null,null,null,null,null,null,null,null,null,null,null,null,null,null,null,null,null,null,null,null,null,null,null,null,null,null,null,null,null,null,null,null,null,"4. Contact Information:"]
[]
[null,null,null,null,null,null,null,null,null,null,null,null,null,null,null,null,null,null,null,null,null,null,null,null,null,null,null,null,null,null,null,null,null,null,null,null,null,null,null,null,null,null,null,null,null,null,null,null,null,null,null,null,null,null,null,null,null,null,null,null,null,null,null,null,null,null,null,null,null,"City",null,null,null,null,null,null,null,null,null,null,null,"County",null,null,null,null,null,null,null,null,null,null,null,null,null,null,"CHDO"]
[null,null,null,null,null,null,null,null,null,null,null,null,null,null,null,null,null,null,null,null,null,null,null,null,null,null,null,null,null,null,null,null,null,null,null,null,null,null,null,null,null,null,null,null,null,null,null,null,null,null,null,null,null,null,null,null,null,null,null,null,null,null,null,null,null,null,false,null,null,null,null,null,null,null,null,null,null,false,null,null,null,null,null,null,null,null,null,null,null,null,null,null,null,false]
[]
[]
[]
[null,null,null,null,null,null,null,null,null,null,null,null,null,null,null,null,null,null,null,null,null,null,null,null,null,null,null,null,null,null,null,null,null,null,null,null,null,null,null,null,null,null,null,null,null,null,null,null,null,null,null,null,null,null,null,null,null,null,null,null,null,null,null,null,null,null,null,null,null,null,null,null,null,null,null,null,null,null,null,null,null,null,null,null,null,"Tribal Entity"]
[null,null,null,null,null,null,null,null,null,null,null,null,null,null,null,null,null,null,null,null,null,null,null,null,null,null,null,null,null,null,null,null,null,null,null,null,null,null,null,null,null,null,null,null,null,null,null,null,null,null,null,null,null,null,null,null,null,null,null,null,null,null,null,null,null,null,false,null,null,"Developer",null,null,null,null,null,null,null,null,null,null,null,null,false]
[]
[]
[null,null,null,null,null,null,null,null,null,null,null,null,null,null,null,null,null,null,null,null,null,null,null,null,null,null,null,null,null,null,null,null,null,null,null,null,null,null,null,null,null,null,null,null,null,null,null,null,null,null,null,null,null,null,null,null,null,null,null,null,null,null,null,null,null,null,null,null,null,null,null,null,null,null,null,null,null,null,null,null,null,null,null,null,null,null,null,null,null,null,null,null,null,null,null,null,null,null,null,null,null,null,null,null,null,null,null,"Preparer's Name",null,null,null,null,null,null,null,null,null,null,null,null,null,null,null,null,null,null,null,null,null,null,null,null,null,null,null,null,null,null,null,null,null,null,null,null,null,null,null,null,null,null,null,null,null,null,null,null,null,null,null,null,null,null,null,null,null,null,null,null,null,null,null,null,null,null,null,"Phone"]
[]
[null,null,null,null,"2. HOME Award Recipient's Address:"]
[]
[]
[]
[]
[]
[]
[]
[null,null,null,null,"Street",null,null,null,null,null,null,null,null,null,null,null,null,null,null,null,null,null,null,null,null,null,null,null,null,null,null,null,null,null,null,null,null,null,null,null,null,null,null,null,null,null,null,null,null,"City",null,null,null,null,null,null,null,null,null,null,null,null,null,null,null,null,null,null,null,null,null,null,null,null,null,null,null,null,null,null,null,null,null,null,null,"State",null,null,null,null,null,null,"Zip",null,null,null,null,null,null,null,null,null,null,null,null,null,null,"Preparer's Organization",null,null,null,null,null,null,null,null,null,null,null,null,null,null,null,null,null,null,null,null,null,null,null,null,null,null,null,null,null,null,null,null,null,null,null,null,null,null,null,null,null,null,null,null,null,null,null,null,null,null,null,null,null,null,null,null,null,null,null,null,null,null,null,null,null,null,null,"Email"]
[]
[]
[]
[null,null,null,null,"3. Name of the Administrative Subcontractor (if applicable)",null,null,null,null,null,null,null,null,null,null,null,null,null,null,null,null,null,null,null,null,null,null,null,null,null,null,null,null,null,null,null,null,null,null,null,null,null,null,null,null,null,null,null,null,null,null,null,null,null,null,null,null,null,null,null,null,null,null,null,null,null,null,null,null,null,null,null,null,null,null,null,null,null,null,null,null,null,null,null,null,null,null,null,null,null,null,null,null,null,null,null,null,null,null,null,null,null,null,null,null,null,null,"Will the same person be preparing                 all APR forms?",null,null,null,null,null,null,null,null,null,null,null,null,null,null,null,null,null,null,null,null,null,null,null,null,null,null,null,null,null,null,null,null,null,null,null,null,null,null,null,null,null,null,null,null,null,null,null,null,null,null,null,null,null,null,null,null,null,null,null,null,"By selecting \"Yes\", preparer's contact information will auto-populate all APR Forms.",null,null,null,null,null,null,null,null,null,null,null,null,null,null,null,null,null,null,null,null,null,null,null,null,null,null,null,null,null,null,null,null,null,null,null,null,null,null,null,null,null,null,null,null,null,null,null,1]
[]
[]
[]
[]
[]
[]
[]
[]
[]
[]
[]
[null,null,null,"The questions below pertain to contract activity during the reporting period.  Complete and submit              all applicable Attachments for the questions that are answered with a \"Yes\" and email to: HOMEPrograms@hcd.ca.gov                                                                                                                                                                                                                                                                                                                                                                                                                                                                                                                                                                                                                                                                                                        ",null,null,null,null,null,null,null,null,null,null,null,null,null,null,null,null,null,null,null,null,null,null,null,null,null,null,null,null,null,null,null,null,null,null,null,null,null,null,null,null,null,null,null,null,null,null,null,null,null,null,null,null,null,null,null,null,null,null,null,null,null,null,null,null,null,null,null,null,null,null,null,null,null,null,null,null,null,null,null,null,null,null,null,null,null,null,null,null,null,null,null,null,null,null,null,null,null,null,null,null,null,null,null,null,null,null,null,null,null,null,null,null,null,null,null,null,null,null,null,null,null,null,null,null,null,null,"Yes/ No",null,null,null,null,null,null,null,null,null,null,null,null,null,"   Attachment",null,null,null,null,null,null,null,null,null,null,null,null,null,null,null,null,null,null,null,null,null,null,null,null,null,null,null,null,null,null,null,null,"Attachment"]
[]
[]
[null,null,null,null,null,null,null,null,null,null,null,null,null,null,null,null,null,null,null,null,null,null,null,null,null,null,null,null,null,null,null,null,null,null,null,null,null,null,null,null,null,null,null,null,null,null,null,null,null,null,null,null,null,null,null,null,null,null,null,null,null,null,null,null,null,null,null,null,null,null,null,null,null,null,null,null,null,null,null,null,null,null,null,null,null,null,null,null,null,null,null,null,null,null,null,null,null,null,null,null,null,null,null,null,null,null,null,null,null,null,null,null,null,null,null,null,null,null,null,null,null,null,null,null,null,null,null,null,null,null,null,null,null,null,null,null,null,null,null,null,null,null,null,null,"A",null,null,null,null,null,null,null,null,null,null,null,null,null,null,null,null,null,null,null,null,null,null,null,null,null,null,null,null,null,null,null,null,"D"]
[]
[null,null,null,null,null,null,null,null,null,null,null,null,null,null,null,null,null,null,null,null,null,null,null,null,null,null,null,null,null,null,null,null,null,null,null,null,null,null,null,null,null,null,null,null,null,null,null,null,null,null,null,null,null,null,null,null,null,null,null,null,null,null,null,null,null,null,null,null,null,null,null,null,null,null,null,null,null,null,null,null,null,null,null,null,null,null,null,null,null,null,null,null,null,null,null,null,null,null,null,null,null,null,null,null,null,null,null,null,null,null,null,null,null,null,null,null,null,null,null,null,null,null,null,null,null,null,null,null,null,null,null,null,null,null,null,null,null,null,null,null,null,null,null,null,"Program Income",null,null,null,null,null,null,null,null,null,null,null,null,null,null,null,null,null,null,null,null,null,null,null,null,null,null,null,null,null,null,null,null,"Relocation"]
[]
[]
[]
[null,null,null,null,null,null,null,null,null,null,null,null,null,null,null,null,null,null,null,null,null,null,null,null,null,null,null,null,null,null,null,null,null,null,null,null,null,null,null,null,null,null,null,null,null,null,null,null,null,null,null,null,null,null,null,null,null,null,null,null,null,null,null,null,null,null,null,null,null,null,null,null,null,null,null,null,null,null,null,null,null,null,null,null,null,null,null,null,null,null,null,null,null,null,null,null,null,null,null,null,null,null,null,null,null,null,null,null,null,null,null,null,null,null,null,null,null,null,null,null,null,null,null,null,null,null,null,null,null,null,null,null,null,null,null,null,null,null,null,null,null,null,null,null,"N/A for CHDOs or Developers"]
[]
[]
[]
[]
[]
[]
[null,null,null,"     APR FORMS FOR HOME RECIPIENTS TO COMPLETE:"]
[]
[]
[]
[null,null,null,"Attachment A - Program Income (PI) and Recaptured Funds (RF)",null,null,null,null,null,null,null,null,null,null,null,null,null,null,null,null,null,null,null,null,null,null,null,null,null,null,null,null,null,null,null,null,null,null,null,null,null,null,null,null,null,null,null,null,null,null,null,null,null,null,null,null,null,null,null,null,null,null,null,null,null,null,null,null,null,null,null,null,null,null,null,null,null,null,null,null,null,null,null,null,null,null,null,null,null,null,null,null,null,null,null,null,null,null,null,null,null,null,null,null,null,null,null,null,null,null,null,null,null,null,null,null,null,null,null,null,null,null,null,null,null,null,null,null,null,null,null,null,null,null,null,null,null,null,null,null,null,null,null,null,{"$f":"IF(IE77=2,\"X\",\"\")","v":""},null,null,null,null,null,null,null,null,null,null,null,null,null,null,null,null,null,null,null,null,null,null,null,null,null,null,null,null,null,null,null,null,null,null,null,null,null,null,null,null,null,null,null,null,null,null,null,null,null,null,null,null,null,null,null,null,null,null,null,null,null,null,null,null,null,null,null,null,null,null,null,null,null,null,null,null,null,null,null,null,null,null,null,null,null,null,null,null,null,null,null,null,null,1]
[]
[null,null,null,null,null,null,null,null,null,null,null,null,null,null,null,null,null,null,null,null,null,null,null,null,null,null,null,null,null,null,null,null,null,null,null,null,null,null,null,null,null,null,null,null,null,null,null,null,null,null,null,null,null,null,null,null,null,null,null,null,null,null,null,null,null,null,null,null,null,null,null,null,null,null,null,null,null,null,null,null,null,null,null,null,null,null,null,null,null,null,null,null,null,null,null,null,null,null,null,null,null,null,null,null,null,null,null,null,null,null,null,null,null,null,null,null,null,null,null,null,null,null,null,null,null,null,null,null,null,null,null,null,null,null,null,null,null,null,null,null,null,null,null,null,null,null,null,null,null,null,null,null,null,null,null,null,null,null,null,null,null,null,null,null,null,null,null,null,null,null,null,null,null,null,null,null,null,null,null,null,null,null,null,null,null,null,null,null,null,null,null,null,null,null,null,null,null,null,null,null,null,null,null,null,null,null,null,null,null,null,null,null,null,null,null,null,null,null,null,null,null,null,null,null,null,null,null,null,null,null,null,null,null,null,null,null,null,null,null,null,null,null,null,null,null,null,null,"All HOME Recipients must file Attachment A, even if the Standard Agreement is expired or there is no PI/RF to report."]
[null,null,null,null,null,"Is the HOME Award Recipient (HR) that is listed in Box #1 above a City or County?"]
[]
["`",null,null,null,null,null,null,null,null,null,null,null,null,null,null,null,null,null,null,null,null,null,null,null,null,null,null,null,null,null,null,null,null,null,null,null,null,null,null,null,null,null,null,null,null,null,null,null,null,null,null,null,null,null,null,null,null,null,null,null,null,null,null,null,null,null,null,null,null,null,null,null,null,null,null,null,null,null,null,null,null,null,null,null,null,null,null,null,null,null,null,null,null,null,null,null,null,null,null,null,null,null,null,null,null,null,null,null,null,null,null,null,null,null,null,null,null,null,null,null,null,null,null,null,null,null,null,null,null,null,null,null,null,null,null,null,null,null,null,null,null,null,null,null,null,null,null,null,null,null,null,null,null,null,null,null,null,null,null,null,null,null,null,null,null,null,null,null,null,null,null,null,null,null,null,null,null,null,null,null,null,null,null,null,null,null,null,null,null,null,null,null,null,null,null,null,null,null,null,null,null,null,null,null,null,null,null,null,null,null,null,null,null,null,null,null,null,null,null,null,null,null,"Select Y/N"]
[null,null,null,null,null,null,null,null,null,null,null,null,null,null,null,null,null,null,null,null,null,null,null,null,null,null,null,null,null,null,null,null,null,null,null,null,null,null,null,null,null,null,null,null,null,null,null,null,null,null,null,null,null,null,null,null,null,null,null,null,null,null,null,null,null,null,null,null,null,null,null,null,null,null,null,null,null,null,null,null,null,null,null,null,null,null,null,null,null,null,null,null,null,null,null,null,null,null,null,null,null,null,null,null,null,null,null,null,null,null,null,null,null,null,null,null,null,null,null,null,null,null,null,null,null,null,null,null,null,null,null,null,null,null,null,null,null,null,null,null,null,null,null,null,null,null,null,null,null,null,null,null,null,null,null,null,null,null,null,null,null,null,null,null,null,null,null,null,null,null,null,null,null,null,null,null,null,null,null,null,null,null,null,null,null,null,null,null,null,null,null,null,null,null,null,null,null,null,null,null,null,null,null,null,null,null,null,null,null,null,null,null,null,null,null,null,null,null,null,null,null,null,"Yes"]
[null,null,null,null,{"$f":"IF(IE77=2,\"All HOME Recipients must file Attachment A, even if the Standard Agreement is expired or there is no PI/RF to report.\",\"\")","v":""},null,null,null,null,null,null,null,null,null,null,null,null,null,null,null,null,null,null,null,null,null,null,null,null,null,null,null,null,null,null,null,null,null,null,null,null,null,null,null,null,null,null,null,null,null,null,null,null,null,null,null,null,null,null,null,null,null,null,null,null,null,null,null,null,null,null,null,null,null,null,null,null,null,null,null,null,null,null,null,null,null,null,null,null,null,null,null,null,null,null,null,null,null,null,null,null,null,null,null,null,null,null,null,null,null,null,null,null,null,null,null,null,null,null,null,null,null,null,null,null,null,null,null,null,null,null,null,null,null,null,null,null,null,null,null,null,null,null,null,null,null,null,null,null,null,null,null,null,null,null,null,null,null,null,null,null,null,null,null,null,null,null,null,null,null,null,null,null,null,null,null,null,null,null,null,null,null,null,null,null,null,null,null,null,null,null,null,null,null,null,null,null,null,null,null,null,null,null,null,null,null,null,null,null,null,null,null,null,null,null,null,null,null,null,null,null,null,"No"]
[]
[]
[]
[]
[]
[null,null,null,null,null,null,null,null,null,null,null,null,null,null,null,null,null,null,null,null,null,null,null,null,null,null,null,null,null,null,null,null,null,null,null,null,null,null,null,null,null,null,null,null,null,null,null,null,null,null,null,null,null,null,null,null,null,null,null,null,null,null,null,null,null,null,null,null,null,null,null,null,null,null,null,null,null,null,null,null,null,null,null,null,null,null,null,null,null,null,null,null,null,null,null,null,null,null,null,null,null,null,null,null,null,null,null,null,null,null,null,null,null,null,null,null,null,null,null,null,null,null,null,null,null,null,null,null,null,null,null,null,null,null,null,null,null,null,null,null,null,null,null,null,null,null,null,null,null,null,null,null,null,null,null,null,null,null,null,null,null,null,null,null,null,null,null,null,null,null,null,null,null,null,null,null,null,null,null,null,null,null,null,null,null,null,null,null,null,null,null,null,null,null,null,null,null,null,null,null,null,null,null,null,null,null,null,null,null,null,null,null,null,null,null,null,null,null,null,null,null,null,null,null,null,null,null,null,null,null,null,null,null,null,null,null,null,null,2]
[]
[]
[]
[]
[]
[]
[]
[]
[]
[]
[null,null,null,"Attachment D - Acquisition and Relocation",null,null,null,null,null,null,null,null,null,null,null,null,null,null,null,null,null,null,null,null,null,null,null,null,null,null,null,null,null,null,null,null,null,null,null,null,null,null,null,null,null,null,null,null,null,null,null,null,null,null,null,null,null,null,null,null,null,null,null,null,null,null,null,null,null,null,null,null,null,null,null,null,null,null,null,null,null,null,null,null,null,null,null,null,null,null,null,null,null,null,null,null,null,null,null,null,null,null,null,null,null,null,null,null,null,null,null,null,null,null,null,null,null,null,null,null,null,null,null,null,null,null,null,null,null,null,null,null,null,null,null,null,null,null,null,null,null,null,null,null,null,null,null,null,null,null,null,null,null,null,null,null,null,null,null,null,null,null,null,null,null,null,null,null,null,null,null,null,null,null,null,null,null,{"$f":"IF(IE101=2,\"X\",\"\")","v":""},null,null,null,null,null,null,null,null,null,null,null,null,null,null,null,null,null,null,null,null,null,null,null,null,null,null,null,null,null,null,null,null,null,null,null,{"$f":"IF(JM101=2,\"X\",\"\")","v":""},null,null,null,null,null,null,null,null,null,null,null,null,null,null,null,null,null,null,null,null,null,null,null,null,1]
[]
[]
[null,null,null,null,null,"Did the HOME Award Recipient assist a First-Time Homebuyer downpayment assistance activity and/or any activity which included the acquisition of real property and/or any temporary or permanent displacement (relocation) of any person, business, or non-profit organization during the reporting period due to acquisition?"]
[]
[]
[]
[]
[]
[]
[]
[null,null,null,null,"Report all acquisitions and all displacements of any person, business or nonprofit organization during the reporting period."]
[]
[]
[]
[]
[null,null,null,"Attachment E - Fair Housing Demographic Analysis",null,null,null,null,null,null,null,null,null,null,null,null,null,null,null,null,null,null,null,null,null,null,null,null,null,null,null,null,null,null,null,null,null,null,null,null,null,null,null,null,null,null,null,null,null,null,null,null,null,null,null,null,null,null,null,null,null,null,null,null,null,null,null,null,null,null,null,null,null,null,null,null,null,null,null,null,null,null,null,null,null,null,null,null,null,null,null,null,null,null,null,null,null,null,null,null,null,null,null,null,null,null,null,null,null,null,null,null,null,null,null,null,null,null,null,null,null,null,null,null,null,null,null,null,null,null,null,null,null,null,null,null,null,null,null,null,null,null,null,null,null,null,null,null,null,null,null,null,null,null,null,null,null,null,null,null,null,null,null,null,null,null,null,null,null,null,null,null,null,null,null,null,null,null,null,null,null,null,null,null,null,null,null,null,null,null,null,null,null,null,null,{"$f":"IF(IE117=2,\"X\",\"\")","v":"X"},null,null,null,null,null,null,null,null,null,null,null,null,null,null,null,null,null,null,null,null,null,null,null,null,null,null,null,null,null,null,null,null,null,null,null,null,null,null,null,null,null,null,2]
[]
[]
[null,null,null,null,null,"Did the HOME Recipient have an active program activity during the reporting period?"]
[null,null,null,null,"This form addresses the question, \"Do all residents and potential residents of this jurisdiction have equal access to housing regardless of race, color, religion, sex, disability, familial status, age or national origin?  If not, why not?\""]
[]
[]
[]
[]
[]
[null,null,null,null,null,null,null,null,null,null,null,null,null,null,null,null,null,null,null,null,null,null,null,null,null,null,null,null,null,null,null,null,null,null,null,null,null,null,null,null,null,null,null,null,null,null,null,null,null,null,null,null,null,null,null,null,null,null,null,null,null,null,null,null,null,null,null,null,null,null,null,null,null,null,null,null,null,null,null,null,null,null,null,null,null,null,null,null,null,null,null,null,null,null,null,null,null,null,null,null,null,null,null,null,null,null,null,null,null,null,null,null,null,null,null,null,null,null,null,null,null,null,null,null,null,null,null,null,null,null,null,null,null,null,null,null,null,null,null,null,null,null,null,null,null,null,null,null,null,null,null,null,null,null,null,null,null,null,null,null,null,null,null,null,null,null,null,null,null,null,null,null,null,null,null,null,null,null,null,null,null,null,null,null,null,null,null,null,null,null,null,null,null,null,null,null,null,null,null,null,null,null,null,null,null,null,null,null,null,null,null,null,null,null,null,null,null,null,null,null,null,null,null,null,null,null,null,null,null,null,null,null,null,null,null,null,null,null,1]
[]
[]
[]
[null,null,null,null,null,null,null,null,null,null,null,null,null,null,null,null,null,null,null,null,null,null,null,null,null,null,null,null,null,null,null,null,null,null,null,null,null,null,null,null,null,null,null,null,null,null,null,null,null,null,null,null,null,null,null,null,null,null,null,null,null,null,null,null,null,null,null,null,null,null,null,null,null,null,null,null,null,null,null,null,null,null,null,null,null,null,null,null,null,null,null,null,null,null,null,null,null,null,null,null,null,null,null,null,null,null,null,null,null,null,null,null,null,null,null,null,null,null,null,null,null,null,null,null,null,null,null,null,null,null,null,null,null,null,null,null,null,null,null,null,null,null,null,null,null,null,null,null,null,null,null,null,null,null,null,null,null,null,null,null,null,null,null,null,null,null,null,null,null,null,null,null,null,null,null,null,null,null,null,null,null,null,null,null,null,null,null,null,null,null,null,null,null,null,null,null,null,null,null,null,null,null,null,null,null,null,null,null,null,null,null,null,null,null,null,null,null,null,null,null,null,null,null,null,null,null,null,null,null,null,null,null,null,null,null,null,null,null,1]
[]
[]
[]
[null,null,null,null,null,null,null,null,null,null,null,null,null,null,null,null,null,null,null,null,null,null,null,null,null,null,null,null,null,null,null,null,null,null,null,null,null,null,null,null,null,null,null,null,null,null,null,null,null,null,null,null,null,null,null,null,null,null,null,null,null,null,null,null,null,null,null,null,null,null,null,null,null,null,null,null,null,null,null,null,null,null,null,null,null,null,null,null,null,null,null,null,null,null,null,null,null,null,null,null,null,null,null,null,null,null,null,null,null,null,null,null,null,null,null,null,null,null,null,null,null,null,null,null,null,null,null,null,null,null,null,null,null,null,null,null,null,null,null,null,null,null,null,null,null,null,null,null,null,null,null,null,null,null,null,null,null,null,null,null,null,null,null,null,null,null,null,null,null,null,null,null,null,null,null,null,null,null,null,null,null,null,null,null,null,null,null,null,null,null,null,null,null,null,null,null,null,null,null,null,null,null,null,null,null,null,null,null,null,null,null,null,null,null,null,null,null,null,null,null,null,{"$f":"(IE127+IE131)*IE135","v":2},null,null,null,null,null,null,null,null,null,null,null,null,null,null,null,null,1,null,null,null,null,null,null,null,null,null,null,{"$f":"(IE127+IE131)*IE135+2","v":4}]
[]
[]
[]
[]
[]
[]
[]
[]
[]
[]
[null,null,null,null,null,null,null,null,null,null,null,null,null,null,null,null,null,null,null,null,null,null,null,null,null,null,null,null,null,null,null,null,null,null,null,null,null,null,null,null,null,null,null,null,null,null,null,null,null,null,null,null,null,null,null,null,null,null,null,null,null,null,null,null,null,null,null,null,null,null,null,null,null,null,null,null,null,null,null,null,null,null,null,null,null,null,null,null,null,null,null,null,null,null,null,null,null,null,null,null,null,null,null,null,null,null,null,null,null,null,null,null,null,null,null,null,null,null,null,null,null,null,null,null,null,null,null,null,null,null,null,null,null,null,null,null,null,null,null,null,null,null,null,null,null,null,null,null,null,null,null,null,null,null,null,null,null,null,null,null,null,null,null,null,null,null,null,null,null,null,null,null,null,null,null,null,null,null,null,null,null,null,null,null,null,null,null,null,null,null,null,null,null,null,null,null,null,null,null,null,null,null,null,null,null,null,null,null,null,null,null,null,null,null,null,null,null,null,null,null,null,null,null,null,null,null,null,null,null,null,null,null,null,null,null,null,null,null,{"$f":"IE127+IE131+IE135","v":3}]
[]
[null,null,null,null,null,null,null,null,null,null,null,null,null,null,null,null,null,null,null,null,null,null,null,null,null,null,null,null,null,null,null,null,null,null,null,null,null,null,null,null,null,null,null,null,null,null,null,null,null,null,null,null,null,null,null,null,null,null,null,null,null,null,null,null,null,null,null,null,null,null,null,null,null,null,null,null,null,null,null,null,null,null,null,null,null,null,null,null,null,null,null,null,null,null,null,null,null,null,null,null,null,null,null,null,null,null,null,null,null,null,null,null,null,null,null,null,null,null,null,null,null,null,null,null,null,null,null,null,null,null,null,null,null,null,null,null,null,null,null,null,null,null,null,null,null,null,null,null,null,null,null,null,null,null,null,null,null,null,null,null,null,null,null,null,null,null,null,null,null,null,null,null,null,null,null,null,null,null,null,null,null,null,null,null,null,null,null,null,null,null,null,null,null,null,null,null,null,null,null,null,null,null,null,null,null,null,null,null,null,null,null,null,null,null,null,null,null,null,null,null,null,null,null,null,null,null,null,null,null,null,null,null,null,null,null,null,null,null,{"$f":"IE77+IE90+IE101+IE117+IE146","v":9},null,null,null,null,null,null,null,null,null,null,null,null,null,null,null,null,"STOP!  No additional reporting is required.  Submit this page to HOME@hcd.ca.gov."]
[]
[]
[]
[]
[]
[]
[]
[]
[null,null,null,null,null,null,null,null,null,null,null,null,null,null,null,null,null,null,null,null,null,null,null,null,null,null,null,null,null,null,null,null,null,null,null,null,null,null,null,null,null,null,null,null,null,null,null,null,null,null,null,null,null,null,null,null,null,null,null,null,null,null,null,null,null,null,null,null,null,null,null,null,null,null,null,null,null,null,null,null,null,null,null,null,null,null,null,null,null,null,null,null,null,null,null,null,null,null,null,null,null,null,null,null,null,null,null,null,null,null,null,null,null,null,null,null,null,null,null,null,null,null,null,null,null,null,null,null,null,null,null,null,null,null,null,null,null,null,null,null,null,null,null,null,null,null,null,null,null,null,null,null,null,null,null,null,null,null,null,null,null,null,null,null,null,null,null,null,null,null,null,null,null,null,null,null,null,null,null,null,null,null,null,null,null,null,null,null,null,null,null,null,null,null,null,null,null,null,null,null,null,null,null,null,null,null,null,null,null,null,null,null,null,null,null,null,null,null,null,null,null,null,null,null,null,null,null,null,null,null,null,null,null,null,null,null,null,null,1,null,null,null,null,null,null,null,null,null,1,null,null,null,null,null,null,null,null,null,{"$f":"IE157*IO157","v":1}]
[]
[]
[]
[]
[null,null,null,null,null,null,null,null,null,null,null,null,null,null,null,null,null,null,null,null,null,null,null,null,null,null,null,null,null,null,null,null,null,null,null,null,null,null,null,null,null,null,null,null,null,null,null,null,null,null,null,null,null,null,null,null,null,null,null,null,null,null,null,null,null,null,null,null,null,null,null,null,null,null,null,null,null,null,null,null,null,null,null,null,null,null,null,null,null,null,null,null,null,null,null,null,null,null,null,null,null,null,null,null,null,null,null,null,null,null,null,null,null,null,null,null,null,null,null,null,null,null,null,null,null,null,null,null,null,null,null,null,null,null,null,null,null,null,null,null,null,null,null,null,null,null,null,null,null,null,null,null,null,null,null,null,null,null,null,null,null,null,null,null,null,null,null,null,null,null,null,null,null,null,null,null,null,null,null,null,null,null,null,null,null,null,null,null,null,null,null,null,null,null,null,null,null,null,null,null,null,null,null,null,null,null,null,null,null,null,null,null,null,null,null,null,null,null,null,null,null,null,null,null,null,null,null,null,null,null,null,null,null,null,null,null,null,null,{"$f":"IE77+IE90+IE101+IE117+IP135+IE157+IO157","v":12},null,null,null,null,null,null,null,null,null,null,null,null,null,null,null,"Stop!  No additional reporting is required.  Submit this document to:  HOME@hcd.ca.gov"]
[null,null,null,null,null,null,null,null,null,null,null,null,null,null,null,null,null,null,null,null,null,null,null,null,null,null,null,null,null,null,null,null,null,null,null,null,null,null,null,null,null,null,null,null,null,null,null,null,null,null,null,null,null,null,null,null,null,null,null,null,null,null,null,null,null,null,null,null,null,null,null,null,null,null,null,null,null,null,null,null,null,null,null,null,null,null,null,null,null,null,null,null,null,null,null,null,null,null,null,null,null,null,null,null,null,null,null,null,null,null,null,null,null,null,null,null,null,null,null,null,null,null,null,null,null,null,null,null,null,null,null,null,null,null,null,null,null,null,null,null,null,null,null,null,null,null,null,null,null,null,null,null,null,null,null,null,null,null,null,null,null,null,null,null,null,null,null,null,null,null,null,null,null,null,null,null,null,null,null,null,null,null,null,null,null,null,null,null,null,null,null,null,null,null,null,null,null,null,null,null,null,null,null,null,null,null,null,null,null,null,null,null,null,null,null,null,null,null,null,null,null,null,null,null,null,null,null,null,"yes",null,null,null,null,null,null,null,null,"Please distribute \"Attachment B and F - HOME MBE/WBE & Section 3 Stand-Alone\" form to all Contractors and Subcontractors to complete."]
[]
[]
[]
[]
[]
[]
[]
[null,null,null,null,null,null,null,null,null,null,null,null,null,null,null,null,null,null,null,null,null,null,null,null,null,null,null,null,null,null,null,null,null,null,null,null,null,null,null,null,null,null,null,null,null,null,null,null,null,null,null,null,null,null,null,null,null,null,null,null,null,null,null,null,null,null,null,null,null,null,null,null,null,null,null,null,null,null,null,null,null,null,null,null,null,null,null,null,null,null,null,null,null,null,null,null,null,null,null,null,null,null,null,null,null,null,null,null,null,null,null,null,null,null,null,null,null,null,null,null,null,null,null,null,null,null,null,null,null,null,null,null,null,null,null,null,null,null,null,null,null,null,null,null,null,null,null,null,null,null,null,null,null,null,null,null,null,null,null,null,null,null,null,null,null,null,null,null,null,null,null,null,null,null,null,null,null,null,null,null,null,null,null,null,null,null,null,null,null,null,null,null,null,null,null,null,null,null,null,null,null,null,null,null,null,null,null,null,null,null,null,null,null,null,null,null,null,null,null,null,null,null,null,null,null,null,null,null,"no",null,null,null,null,null,null,null,null,"No action necessary"]
[]
[]
[]
[]
[]
[]
[]
[]
[]
[]
[]
["Select Option"]
["A"]
["Alameda, County of "]
["Allied Real Estate Partners"]
["Amador, County of "]
["American Canyon, City of "]
["Anaheim, City of "]
["Anderson, City of "]
["Angels, City of"]
["Angels Camp, City of "]
["Apple Valley, Town of "]
["Arcata, City of "]
["Artesia, City of "]
["Asociacion Campesina Lazaro Cardenas (ACLC, Inc.)"]
["Atwater, City of "]
["Auburn, City of "]
["Avenal, City of "]
["B"]
["Biggs, City of "]
["Bishop, City of "]
["Brawley, City of "]
["Buena Park, City of "]
["Butte, County of "]
["C"]
["Cabrillo Economic Development Corporation"]
["Calaveras, County of "]
["Calexico, City of "]
["California Housing Finance Agency"]
["California Human Development Corporation"]
["Calimesa, City of "]
["Calipatria, City of "]
["Calistoga Affordable Housing, Incorporated"]
["Calistoga, City of "]
["Capitola, City of "]
["Carson, City of "]
["Cathedral City, City of"]
["Central Coast Housing"]
["Central Sierra Planning Council"]
["Central Valley Christian Housing Development Corporation (CVC Housing)"]
["Central Valley Coalition for Affordable Housing"]
["Ceres, City of "]
["Chelsea Investment Corporation"]
["Chico, City of "]
["Chino, City of "]
["Chowchilla, City of "]
["Citadel Community Development Corporation"]
["Citrus Heights, City of "]
["Clearlake, City of "]
["Clovis, City of "]
["Coachella Valley Housing Coalition"]
["Coachella, City of "]
["Coalinga, City of "]
["Colusa, City of "]
["Colusa, County of "]
["Community Housing Assistance Program, Inc."]
["Community Housing Improvement Program, Incorporated (CHIP)"]
["Community Housing Improvement Systems and Planning Association, Incorporated (CHISPA)"]
["Community Housing Opportunities Corporation"]
["Community Resource Project"]
["Corcoran, City of"]
["Corning, City of"]
["Corona, City of "]
["Corporation for Better Housing"]
["County of Madera Economic Development Commission"]
["County of San Benito Department of Community Services and Workforce Development"]
["Crescent City, City of"]
["D"]
["Davis, City of "]
["Del Norte, County of "]
["Delano, City of "]
["Dinuba, City of "]
["Dixon, City of "]
["Dorris, City of "]
["Dos Palos, City of "]
["Dunsmuir, City of "]
["E"]
["EAH Housing"]
["Eden Housing"]
["Eden South Bay, Incorporated"]
["El Cajon, City of "]
["El Centro, City of "]
["El Dorado County of Economic Development"]
["El Dorado, County of "]
["Elk Grove, City of "]
["Escondido, City of "]
["Esperanza Housing and Community Development Corporation"]
["Eureka, City of "]
["Exeter, City of "]
["F"]
["Fairfield, City of "]
["Family Apartments"]
["Farmersville, City of "]
["Firebaugh, City of "]
["Ford Street Project"]
["Fort Bragg, City of "]
["Fortuna, City of "]
["Fountain Valley, City of "]
["Fresno Housing Authority"]
["G"]
["Gardena, City of "]
["Glendora, City of "]
["Glenn County Human Resource Agency"]
["Glenn, County of "]
["Golden Empire Affordable Housing, Incorporated"]
["Gonzales, City of "]
["Grass Valley, City of "]
["Great Northern Corporation"]
["Greenfield, City of "]
["Gridley, City of "]
["Grover Beach, City of "]
["H"]
["Habitat for Humanity Monterey Bay"]
["Hanford, City of "]
["Hemet, City of "]
["Hesperia, City of "]
["Hollister, City of "]
["Holtville, City of "]
["Housing Assistance Corporation"]
["Housing Authority of the City and County of Fresno"]
["Housing Authority of the County of Fresno"]
["Housing Authority of the County of Kern"]
["Hughson, City of "]
["Humboldt Bay Housing Development Corporation"]
["Humboldt, County of "]
["Huron, City of "]
["I"]
["Imperial, City of "]
["Imperial, County of "]
["Indio, City of "]
["Inyo, County of "]
["Ione, City of "]
["Irvine, City of "]
["J"]
["Jackson, City of "]
["Jamboree Housing Corporation"]
["K"]
["King City, City of "]
["Kings, County of "]
["L"]
["La Habra, City of "]
["Lake Tahoe AIDS Task Force"]
["Lake, County of "]
["Lakeport, City of "]
["Lakewood, City of "]
["Lancaster, City of "]
["Lassen, County of "]
["Lemoore, City of "]
["LINC Community Development Corporation"]
["Lincoln, City of "]
["Lindsay, City of "]
["Live Oak, City of "]
["Livingston, City of "]
["Lodi, City of "]
["Lompoc, City of "]
["Long Beach, City of "]
["Los Angeles, City of "]
["Los Banos, City of "]
["Loyalton, City of "]
["M"]
["Madera, City of "]
["Madera, County of"]
["Mammoth Lakes, Town of "]
["Mammoth Lakes Housing"]
["Many Mansions, a California nonprofit corporation"]
["Maricopa, City of "]
["Marina, City of "]
["Mariposa, County of"]
["Marysville, City of "]
["McFarland, City of "]
["Mendocino, County of "]
["Mendota, City of "]
["Merced, City of "]
["Merced, County of "]
["Metropolitan Area Advisory Committee"]
["Mid-Peninsula Housing Corporation"]
["Mid-Peninsula, The Farm Incorporated"]
["Milpitas, City of "]
["Mono, County of "]
["Montague, City of "]
["Monterey County Housing, Incorporated"]
["Monterey, City of"]
["Monterey, County of "]
["Moreno Valley Economic Development"]
["Morro Bay, City of "]
["Mount Shasta, City of "]
["Mutual Housing California"]
["N"]
["Napa Valley Community Housing"]
["Napa, City of "]
["Neighborhood Housing Services of the Inland Empire, Incorporated"]
["Neighborhood Partners, LLC"]
["Neighborhood Partnership Housing Services, Inc."]
["Nevada County Housing Development Corporation"]
["Nevada, County of "]
["Newman, City of "]
["North Coast Energy Services, Incorporated"]
["Northern Circle Indian Housing Authority"]
["O"]
["Oakdale, City of "]
["Oakland, City of "]
["Orange County Community Housing Corporation"]
["Orange Cove, City of "]
["Orland, City of "]
["Oroville, City of "]
["P"]
["Pacific Development Corporation, Inc."]
["Pacific Southwest Community Development Corporation"]
["Pacific West Communities, Inc."]
["Pajaro Valley Housing Corporation"]
["Palm Springs, City of "]
["Palmdale, City of "]
["Palo Alto, City of "]
["Paradise, Town of "]
["Parlier, City of "]
["People's Self-Help Housing Corporation"]
["Perris, City of "]
["Petaluma, City of "]
["Pico Rivera, City of "]
["Placer, County of "]
["Placerville, City of "]
["Plymouth, City of "]
["Point Arena, City of "]
["Porterville, City of "]
["R"]
["Rancho Cordova, City of "]
["Red Bluff, City of "]
["Redding, City of "]
["Redlands, City of "]
["Redwood Community Action Agency"]
["Resources for Community Development"]
["Resources for Rural Community Development, Incorporated"]
["Rio Dell, City of "]
["Riverbank, City of "]
["Rocklin, City of"]
["Roseville, City of "]
["Rural California Housing Corporation"]
["Rural Communities Housing Development Corporation"]
["Rural Community Assistance"]
["S"]
["Sacramento Mutual Housing Association"]
["Sacramento, City of "]
["Salinas, City of "]
["San Benito, County of "]
["San Diego, City of "]
["San Diego, County of "]
["San Joaquin, City of "]
["San Jose, City of "]
["San Juan Capistrano, City of "]
["San Luis Obispo, County of "]
["Sand City, City of "]
["Sanger, City of"]
["Santa Clarita, City of "]
["Santa Cruz, City of "]
["Santa Cruz, County of "]
["Satellite Affordable Housing Associates"]
["Scotts Valley, City of "]
["Self-Help Enterprises"]
["Self-Help Home Improvement Project"]
["Shasta Housing Development Corporation"]
["Shasta Lake, City of "]
["Shasta, County of "]
["Sierra, County of "]
["Simi Valley, City of "]
["Siskiyou, County of "]
["Solano, County of "]
["Solar Community Housing Association"]
["Soledad Local Development Corporation"]
["Soledad, City of "]
["South Bay Improvement Association"]
["South County Housing Corporation"]
["South Lake Tahoe, City of "]
["Southern Humboldt Senior Care, Incorporated"]
["St. Helena, City of"]
["Stanislaus, County of"]
["Suisun City, City of "]
["Susanville, City of"]
["Sutter Creek, City of "]
["Sutter, County of "]
["T"]
["Taft, City of "]
["Tehama, County of "]
["The John Stewart Company"]
["The Related Companies of California, LLC"]
["Thousand Oaks, City of "]
["Trinity, County of "]
["Truckee, Town of "]
["Tulare, City of "]
["Tulare, County of "]
["Tuolumne, County of "]
["Turlock, City of "]
["U"]
["Ukiah, City of "]
["United Native Housing Development Corporation"]
["Upland, City of "]
["V"]
["Vacaville, City of "]
["Ventura, County of "]
["Visalia, City of "]
["Visalians Interested in Affordable Housing"]
["Visionary Home Builders of California, Inc."]
["W"]
["Wasco, City of "]
["Waterford, City of "]
["Watsonville, City of "]
["Weed, City of "]
["West Covina, City of "]
["West Sacramento Housing Development Corporation"]
["West Sacramento, City of "]
["Westminster, City of "]
["Westmorland, City of "]
["Wheatland, City of"]
["Williams, City of "]
["Willits, City of"]
["Willows, City of "]
["Winters, City of "]
["Woodlake, City of "]
["Woodland, City of "]
["Y"]
["Yolo, County of "]
["Yountville, Town of "]
["Yuba City, City of "]
["Yuba, County of "]

{"sheet":"Att A","index":1,"n_rows":667,"n_cols":305,"rows_kept":667,"cut":false,"hidden":false,"merged":[[175,259,175,274],[166,206,166,242],[167,206,167,242],[168,206,168,243],[176,206,176,250],[170,206,170,250],[171,206,171,250],[172,206,172,250],[173,206,173,250],[174,206,174,250],[175,206,175,250],[177,206,177,250],[215,3,215,24],[155,4,155,30],[155,31,155,58],[155,59,155,82],[155,83,155,97],[155,98,155,108],[155,109,155,118],[155,119,155,130],[155,131,155,139],[155,140,155,149],[215,25,215,35],[215,36,215,44],[215,45,215,56],[215,57,215,87],[215,88,215,143],[215,144,215,150],[156,83,169,97],[156,98,169,108],[156,109,169,118],[156,119,169,130],[156,131,169,139],[156,140,169,149],[170,197,170,200],[0,45,2,122],[0,167,134,173],[3,62,5,114],[6,62,8,114],[8,183,8,193],[12,3,14,26],[16,3,18,59],[16,107,18,117],[16,120,18,150],[19,3,20,22],[19,62,20,79],[19,107,20,112],[19,120,20,126],[21,176,35,206],[23,4,24,81],[25,4,32,150],[34,5,35,8],[34,9,35,150],[49,18,51,62],[49,63,51,86],[49,176,49,180],[49,189,53,196],[59,176,61,180],[60,8,61,78],[49,207,52,219],[50,176,51,180],[53,176,55,180],[37,3,38,150],[37,176,40,206],[39,88,41,107],[39,109,41,128],[39,130,41,149],[41,12,47,62],[41,63,47,86],[46,89,51,149],[46,176,46,180],[49,11,51,17],[54,4,56,7],[54,8,56,73],[54,88,56,107],[54,109,56,128],[54,130,56,149],[56,176,58,180],[58,4,59,7],[58,8,59,85],[58,88,59,107],[58,109,59,128],[58,130,59,149],[60,207,67,218],[62,4,64,7],[62,8,64,78],[62,88,64,107],[62,109,64,128],[62,130,64,149],[67,4,69,7],[81,175,86,251],[83,104,91,128],[85,4,87,7],[85,8,87,97],[85,130,87,149],[89,4,91,7],[67,8,71,86],[67,88,69,107],[67,109,69,128],[67,130,69,149],[71,176,73,188],[73,4,77,7],[73,8,77,86],[73,88,75,107],[73,109,75,128],[73,130,75,149],[89,8,91,103],[89,130,91,149],[93,4,94,149],[96,3,98,62],[96,63,98,86],[96,87,98,106],[96,107,98,148],[78,88,82,140],[79,4,81,7],[79,8,83,65],[79,67,81,86],[108,8,110,78],[108,88,110,107],[112,4,114,7],[112,8,114,78],[112,88,114,107],[116,4,117,149],[100,4,102,7],[100,8,102,78],[100,88,102,107],[100,111,102,148],[103,111,114,148],[104,4,106,7],[104,8,105,78],[104,88,106,107],[106,8,107,78],[108,4,110,7],[119,4,120,149],[122,4,124,88],[122,89,122,149],[123,89,126,107],[123,110,126,117],[123,119,126,149],[126,4,132,7],[126,8,132,87],[127,89,132,107],[127,110,132,117],[127,119,132,149],[135,2,137,151],[135,167,192,173],[138,2,140,151],[141,2,143,151],[146,4,148,149],[149,4,154,149],[156,4,169,30],[156,31,169,58],[156,59,169,82],[170,119,170,130],[170,131,170,139],[170,140,170,149],[172,4,172,30],[172,31,172,58],[172,59,172,82],[172,83,172,97],[172,98,172,108],[171,4,171,30],[171,31,171,58],[171,59,171,82],[171,83,171,97],[171,98,171,108],[171,109,171,118],[170,4,170,30],[170,31,170,58],[170,59,170,82],[170,83,170,97],[170,98,170,108],[170,109,170,118],[171,119,171,130],[171,131,171,139],[171,140,171,149],[171,197,171,200],[172,109,172,118],[172,119,172,130],[172,131,172,139],[172,140,172,149],[172,197,172,200],[173,4,173,30],[173,31,173,58],[173,59,173,82],[173,83,173,97],[173,98,173,108],[173,109,173,118],[173,119,173,130],[173,131,173,139],[173,140,173,149],[173,197,173,200],[174,197,174,200],[175,4,175,30],[175,31,175,58],[175,59,175,82],[175,83,175,97],[175,98,175,108],[175,109,175,118],[175,119,175,130],[175,131,175,139],[175,140,175,149],[175,197,175,200],[174,4,174,30],[174,31,174,58],[174,59,174,82],[174,83,174,97],[174,98,174,108],[174,109,174,118],[174,119,174,130],[174,131,174,139],[174,140,174,149],[176,197,176,200],[177,4,177,30],[177,31,177,58],[177,59,177,82],[177,83,177,97],[177,98,177,108],[177,109,177,118],[177,119,177,130],[177,131,177,139],[177,140,177,149],[177,197,177,200],[176,4,176,30],[176,31,176,58],[176,59,176,82],[176,83,176,97],[176,98,176,108],[176,109,176,118],[176,119,176,130],[176,131,176,139],[176,140,176,149],[178,197,178,200],[179,4,179,30],[179,31,179,58],[179,59,179,82],[179,83,179,97],[179,98,179,108],[179,109,179,118],[179,119,179,130],[179,131,179,139],[179,140,179,149],[179,197,179,200],[178,4,178,30],[178,31,178,58],[178,59,178,82],[178,83,178,97],[178,98,178,108],[178,109,178,118],[178,119,178,130],[178,131,178,139],[178,140,178,149],[180,197,180,200],[181,4,181,30],[181,31,181,58],[181,59,181,82],[181,83,181,97],[181,98,181,108],[181,109,181,118],[181,119,181,130],[181,131,181,139],[181,140,181,149],[181,197,181,200],[180,4,180,30],[180,31,180,58],[180,59,180,82],[180,83,180,97],[180,98,180,108],[180,109,180,118],[180,119,180,130],[180,131,180,139],[180,140,180,149],[182,197,182,200],[183,4,183,30],[183,31,183,58],[183,59,183,82],[183,83,183,97],[183,98,183,108],[183,109,183,118],[183,119,183,130],[183,131,183,139],[183,140,183,149],[183,197,183,200],[182,4,182,30],[182,31,182,58],[182,59,182,82],[182,83,182,97],[182,98,182,108],[182,109,182,118],[182,119,182,130],[182,131,182,139],[182,140,182,149],[187,131,187,139],[187,140,187,149],[184,197,184,200],[185,4,185,30],[185,31,185,58],[185,59,185,82],[185,83,185,97],[185,98,185,108],[185,109,185,118],[185,119,185,130],[185,131,185,139],[185,140,185,149],[185,197,185,200],[184,4,184,30],[184,31,184,58],[184,59,184,82],[184,83,184,97],[184,98,184,108],[184,109,184,118],[184,119,184,130],[184,131,184,139],[184,140,184,149],[224,110,230,116],[224,117,230,130],[224,131,230,136],[224,137,230,143],[187,197,187,200],[188,4,191,117],[188,119,190,130],[186,119,186,130],[186,131,186,139],[186,140,186,149],[186,197,186,200],[187,4,187,30],[187,31,187,58],[187,59,187,82],[187,83,187,97],[187,98,187,108],[187,109,187,118],[186,4,186,30],[186,31,186,58],[186,59,186,82],[186,83,186,97],[186,98,186,108],[186,109,186,118],[187,119,187,130],[231,66,231,76],[232,99,232,109],[232,110,232,116],[232,117,232,130],[193,167,249,173],[194,2,196,151],[197,2,199,151],[200,2,202,151],[204,3,206,150],[207,3,214,150],[216,3,230,24],[216,25,230,35],[216,36,230,44],[216,45,230,56],[216,57,221,87],[216,88,219,143],[216,144,230,150],[220,88,230,98],[220,99,230,109],[220,110,223,130],[220,131,223,143],[222,57,230,65],[222,66,230,76],[222,77,230,87],[232,131,232,136],[232,137,232,143],[232,144,232,150],[231,137,231,143],[231,144,231,150],[232,3,232,24],[232,25,232,35],[232,36,232,44],[232,45,232,56],[232,57,232,65],[232,66,232,76],[232,77,232,87],[232,88,232,98],[231,77,231,87],[231,88,231,98],[231,99,231,109],[231,110,231,116],[231,117,231,130],[231,131,231,136],[231,3,231,24],[231,25,231,35],[231,36,231,44],[231,45,231,56],[231,57,231,65],[234,144,234,150],[233,137,233,143],[233,144,233,150],[234,3,234,24],[234,25,234,35],[234,36,234,44],[234,45,234,56],[234,57,234,65],[234,66,234,76],[234,77,234,87],[234,88,234,98],[233,77,233,87],[233,88,233,98],[233,99,233,109],[233,110,233,116],[233,117,233,130],[233,131,233,136],[233,3,233,24],[233,25,233,35],[233,36,233,44],[233,45,233,56],[233,57,233,65],[233,66,233,76],[235,36,235,44],[235,45,235,56],[235,57,235,65],[235,66,235,76],[234,99,234,109],[234,110,234,116],[234,117,234,130],[234,131,234,136],[234,137,234,143],[236,99,236,109],[236,110,236,116],[236,117,236,130],[236,131,236,136],[236,137,236,143],[236,144,236,150],[235,137,235,143],[235,144,235,150],[236,3,236,24],[236,25,236,35],[236,36,236,44],[236,45,236,56],[236,57,236,65],[236,66,236,76],[236,77,236,87],[236,88,236,98],[235,77,235,87],[235,88,235,98],[235,99,235,109],[235,110,235,116],[235,117,235,130],[235,131,235,136],[235,3,235,24],[235,25,235,35],[238,144,238,150],[237,137,237,143],[237,144,237,150],[238,3,238,24],[238,25,238,35],[238,36,238,44],[238,45,238,56],[238,57,238,65],[238,66,238,76],[238,77,238,87],[238,88,238,98],[237,77,237,87],[237,88,237,98],[237,99,237,109],[237,110,237,116],[237,117,237,130],[237,131,237,136],[237,3,237,24],[237,25,237,35],[237,36,237,44],[237,45,237,56],[237,57,237,65],[237,66,237,76],[239,36,239,44],[239,45,239,56],[239,57,239,65],[239,66,239,76],[238,99,238,109],[238,110,238,116],[238,117,238,130],[238,131,238,136],[238,137,238,143],[240,99,240,109],[240,110,240,116],[240,117,240,130],[240,131,240,136],[240,137,240,143],[240,144,240,150],[239,137,239,143],[239,144,239,150],[240,3,240,24],[240,25,240,35],[240,36,240,44],[240,45,240,56],[240,57,240,65],[240,66,240,76],[240,77,240,87],[240,88,240,98],[239,77,239,87],[239,88,239,98],[239,99,239,109],[239,110,239,116],[239,117,239,130],[239,131,239,136],[239,3,239,24],[239,25,239,35],[242,144,242,150],[241,137,241,143],[241,144,241,150],[242,3,242,24],[242,25,242,35],[242,36,242,44],[242,45,242,56],[242,57,242,65],[242,66,242,76],[242,77,242,87],[242,88,242,98],[241,77,241,87],[241,88,241,98],[241,99,241,109],[241,110,241,116],[241,117,241,130],[241,131,241,136],[241,3,241,24],[241,25,241,35],[241,36,241,44],[241,45,241,56],[241,57,241,65],[241,66,241,76],[243,36,243,44],[243,45,243,56],[243,57,243,65],[243,66,243,76],[242,99,242,109],[242,110,242,116],[242,117,242,130],[242,131,242,136],[242,137,242,143],[244,99,244,109],[244,110,244,116],[244,117,244,130],[244,131,244,136],[244,137,244,143],[244,144,244,150],[243,137,243,143],[243,144,243,150],[244,3,244,24],[244,25,244,35],[244,36,244,44],[244,45,244,56],[244,57,244,65],[244,66,244,76],[244,77,244,87],[244,88,244,98],[243,77,243,87],[243,88,243,98],[243,99,243,109],[243,110,243,116],[243,117,243,130],[243,131,243,136],[243,3,243,24],[243,25,243,35],[245,137,245,143],[245,144,245,150],[245,99,245,109],[245,110,245,116],[245,117,245,130],[245,131,245,136],[246,3,246,24],[246,25,246,35],[246,36,246,44],[246,45,246,56],[246,57,246,65],[246,66,246,76],[246,77,246,87],[246,88,246,98],[245,77,245,87],[245,88,245,98],[245,3,245,24],[245,25,245,35],[245,36,245,44],[245,45,245,56],[245,57,245,65],[245,66,245,76],[246,99,246,109],[246,110,246,116],[246,117,246,130],[246,131,246,136],[246,137,246,143],[246,144,246,150],[248,131,248,136],[248,137,248,143],[248,144,248,150],[247,137,247,143],[247,144,247,150],[247,99,247,109],[247,110,247,116],[247,117,247,130],[247,131,247,136],[248,99,248,109],[247,77,247,87],[247,88,247,98],[247,3,247,24],[247,25,247,35],[247,36,247,44],[247,45,247,56],[247,57,247,65],[247,66,247,76],[248,110,248,116],[300,4,302,7],[300,8,302,106],[303,4,305,7],[303,8,305,106],[307,4,309,149],[311,4,313,7],[311,8,313,134],[314,8,316,123],[248,3,248,24],[248,25,248,35],[248,36,248,44],[248,45,248,56],[248,57,248,65],[248,66,248,76],[248,77,248,87],[248,88,248,98],[248,117,248,130],[250,167,358,173],[251,2,253,151],[254,2,256,151],[257,2,259,151],[262,4,264,149],[266,4,267,12],[268,4,270,113],[271,4,273,70],[275,4,277,149],[279,4,281,7],[291,4,293,7],[291,8,293,104],[294,4,296,7],[294,8,296,118],[297,4,299,7],[297,8,299,97],[279,8,281,149],[324,4,326,149],[328,3,329,62],[331,3,333,58],[334,3,336,104],[337,3,339,105],[340,3,342,123],[317,4,319,7],[455,2,461,151],[393,4,395,80],[396,4,398,110],[399,4,401,111],[402,4,404,85],[405,4,407,84],[408,4,410,82],[343,3,345,123],[346,3,348,138],[349,3,351,111],[352,3,354,109],[355,3,357,116],[12,28,14,117],[12,133,14,150],[12,126,14,132],[359,167,415,173],[363,2,365,151],[366,2,368,151],[371,4,373,149],[375,4,377,149],[378,4,380,149],[381,15,383,71],[384,4,386,85],[387,4,389,85],[390,4,392,149],[359,2,362,151],[317,8,319,99],[320,4,322,7],[320,8,322,118],[16,62,18,104],[282,8,284,44],[285,4,287,7],[285,8,287,114],[288,4,290,7],[288,8,290,104],[314,4,316,7]]}
[null,null,null,null,null,null,null,null,null,null,null,null,null,null,null,null,null,null,null,null,null,null,null,null,null,null,null,null,null,null,null,null,null,null,null,null,null,null,null,null,null,null,null,null,null,"Attachment A - Program Income and Recaptured Funds",null,null,null,null,null,null,null,null,null,null,null,null,null,null,null,null,null,null,null,null,null,null,null,null,null,null,null,null,null,null,null,null,null,null,null,null,null,null,null,null,null,null,null,null,null,null,null,null,null,null,null,null,null,null,null,null,null,null,null,null,null,null,null,null,null,null,null,null,null,null,null,null,null,null,null,null,null,null,null,null,null,null,null,null,null,null,null,null,null,null,null,null,null,null,null,null,null,null,null,null,null,null,null,null,null,null,null,null,null,null,null,null,null,null,null,null,null,null,null,null,null,"PAGE 1"]
[]
[]
[null,null,null,null,null,null,null,null,null,null,null,null,null,null,null,null,null,null,null,null,null,null,null,null,null,null,null,null,null,null,null,null,null,null,null,null,null,null,null,null,null,null,null,null,null,null,null,null,null,null,null,null,null,null,null,null,null,null,null,null,null,null,"HOME Annual Performance Report"]
[]
[]
[null,null,null,null,null,null,null,null,null,null,null,null,null,null,null,null,null,null,null,null,null,null,null,null,null,null,null,null,null,null,null,null,null,null,null,null,null,null,null,null,null,null,null,null,null,null,null,null,null,null,null,null,null,null,null,null,null,null,null,null,null,null,"Reporting Period July 1, 2024 through June 30, 2025"]
[]
[]
[]
[]
[]
[null,null,null,"HOME Award Recipient",null,null,null,null,null,null,null,null,null,null,null,null,null,null,null,null,null,null,null,null,null,null,null,null,{"$f":"IF(Matrix!E24=0,\"\",Matrix!E24)","v":""},null,null,null,null,null,null,null,null,null,null,null,null,null,null,null,null,null,null,null,null,null,null,null,null,null,null,null,null,null,null,null,null,null,null,null,null,null,null,null,null,null,null,null,null,null,null,null,null,null,null,null,null,null,null,null,null,null,null,null,null,null,null,null,null,null,null,null,null,null,null,null,null,null,null,null,null,null,null,null,null,null,null,null,null,null,null,null,null,null,null,null,null,null,null,null,null,null,"Date"]
[]
[]
[]
[null,null,null,{"$f":"IF(Matrix!$HI$45=2,Matrix!$DD24,\"\")","v":""},null,null,null,null,null,null,null,null,null,null,null,null,null,null,null,null,null,null,null,null,null,null,null,null,null,null,null,null,null,null,null,null,null,null,null,null,null,null,null,null,null,null,null,null,null,null,null,null,null,null,null,null,null,null,null,null,null,null,{"$f":"IF(Matrix!HI45=2,Matrix!DD35,\"\")","v":""},null,null,null,null,null,null,null,null,null,null,null,null,null,null,null,null,null,null,null,null,null,null,null,null,null,null,null,null,null,null,null,null,null,null,null,null,null,null,null,null,null,null,null,null,{"$f":"IF(Matrix!$HI$45=2, Matrix!$FT$24, \"\")","v":""},null,null,null,null,null,null,null,null,null,null,null,null,{"$f":"IF(Matrix!HI45=2,Matrix!FT35,\"\")","v":""}]
[]
[]
[null,null,null,"Preparer's Name",null,null,null,null,null,null,null,null,null,null,null,null,null,null,null,null,null,null,null,null,null,null,null,null,null,null,null,null,null,null,null,null,null,null,null,null,null,null,null,null,null,null,null,null,null,null,null,null,null,null,null,null,null,null,null,null,null,null,"Preparer's Organization",null,null,null,null,null,null,null,null,null,null,null,null,null,null,null,null,null,null,null,null,null,null,null,null,null,null,null,null,null,null,null,null,null,null,null,null,null,null,null,null,null,null,null,null,"Phone",null,null,null,null,null,null,null,null,null,null,null,null,"Email"]
[]
[null,null,null,null,null,null,null,null,null,null,null,null,null,null,null,null,null,null,null,null,null,null,null,null,null,null,null,null,null,null,null,null,null,null,null,null,null,null,null,null,null,null,null,null,null,null,null,null,null,null,null,null,null,null,null,null,null,null,null,null,null,null,null,null,null,null,null,null,null,null,null,null,null,null,null,null,null,null,null,null,null,null,null,null,null,null,null,null,null,null,null,null,null,null,null,null,null,null,null,null,null,null,null,null,null,null,null,null,null,null,null,null,null,null,null,null,null,null,null,null,null,null,null,null,null,null,null,null,null,null,null,null,null,null,null,null,null,null,null,null,null,null,null,null,null,null,null,null,null,null,null,null,null,null,null,null,null,null,null,null,null,null,null,null,null,null,null,null,null,null,null,null,null,null,null,null,"If you report a negative balance at any time,                                                                        you must attach a PI ledger to this report."]
[]
[null,null,null,null,"Provide information for all Program Income and Recaptured Funds:"]
[]
[null,null,null,null,"HOME Recipients are required to differentiate between Program Income (PI) and Recaptured Funds (RF) due to the fact that 10% of PI can be used for administrative costs, whereas RF cannot be used for administrative costs.  Additionally, the accounting of PI and RF should be separate from Admin PI Funds.  NOTE:  Reporting negative PI or PI Admin is not permissable.             Do not leave any blank (yellow fields) on page one."]
[]
[]
[]
[]
[]
[]
[]
[]
[null,null,null,null,null,null,null,null,null,"By checking this box, the HOME Recipient is certifying that they have no beginning PI/RF balance, have not received PI/RF,  have no PI/RF expenditures, and do not anticipate receiving any PI/RF.  (Blank fields on page 1 will auto-populate with zeros.)"]
[]
[]
[null,null,null,"Program Income/Recaptured Funds Summary",null,null,null,null,null,null,null,null,null,null,null,null,null,null,null,null,null,null,null,null,null,null,null,null,null,null,null,null,null,null,null,null,null,null,null,null,null,null,null,null,null,null,null,null,null,null,null,null,null,null,null,null,null,null,null,null,null,null,null,null,null,null,null,null,null,null,null,null,null,null,null,null,null,null,null,null,null,null,null,null,null,null,null,null,null,null,null,null,null,null,null,null,null,null,null,null,null,null,null,null,null,null,null,null,null,null,null,null,null,null,null,null,null,null,null,null,null,null,null,null,null,null,null,null,null,null,null,null,null,null,null,null,null,null,null,null,null,null,null,null,null,null,null,null,null,null,null,null,null,null,null,null,null,null,null,null,null,null,null,null,null,null,null,null,null,null,null,null,null,null,null,null,"Amount retained for Admnistrative Funds cannot exceed 10% of Program Income received during the period."]
[]
[null,null,null,null,null,null,null,null,null,null,null,null,null,null,null,null,null,null,null,null,null,null,null,null,null,null,null,null,null,null,null,null,null,null,null,null,null,null,null,null,null,null,null,null,null,null,null,null,null,null,null,null,null,null,null,null,null,null,null,null,null,null,null,null,null,null,null,null,null,null,null,null,null,null,null,null,null,null,null,null,null,null,null,null,null,null,null,null,"Program Income",null,null,null,null,null,null,null,null,null,null,null,null,null,null,null,null,null,null,null,null,"Recaptured Funds",null,null,null,null,null,null,null,null,null,null,null,null,null,null,null,null,null,null,null,null,"Total"]
[]
[null,null,null,null,null,null,null,null,null,null,null,null,"Ending balance from 2023-24 APR, Attachment A (Line 8)"]
[]
[]
[]
[null,null,null,null,null,null,null,null,null,null,null,null,null,null,null,null,null,null,null,null,null,null,null,null,null,null,null,null,null,null,null,null,null,null,null,null,null,null,null,null,null,null,null,null,null,null,null,null,null,null,null,null,null,null,null,null,null,null,null,null,null,null,null,null,null,null,null,null,null,null,null,null,null,null,null,null,null,null,null,null,null,null,null,null,null,null,null,null,null,null,null,null,null,null,null,null,null,null,null,null,null,null,null,null,null,null,null,null,null,null,null,null,null,null,null,null,null,null,null,null,null,null,null,null,null,null,null,null,null,null,null,null,null,null,null,null,null,null,null,null,null,null,null,null,null,null,null,null,null,null,null,null,null,null,null,null,null,null,null,null,null,null,null,null,null,null,null,null,null,null,null,null,null,null,null,null,{"$f":"IF(CK55=0,\"\",FU22)","v":""}]
[null,null,null,null,null,null,null,null,null,null,null,null,null,null,null,null,null,null,null,null,null,null,null,null,null,null,null,null,null,null,null,null,null,null,null,null,null,null,null,null,null,null,null,null,null,null,null,null,null,null,null,null,null,null,null,null,null,null,null,null,null,null,null,null,null,null,null,null,null,null,null,null,null,null,null,null,null,null,null,null,null,null,null,null,null,null,null,null,null,{"$f":"IF(BL42<>EA55,\"Total beginning balance must match ending balance from last APR Attachment A.  If last year's ending balance was incorrect, please make adjusting entries on lines 2 or 4 below to get the correct ending balance on line 8, and explain in Comments box below.\",\"\")","v":""},null,null,null,null,null,null,null,null,null,null,null,null,null,null,null,null,null,null,null,null,null,null,null,null,null,null,null,null,null,null,null,null,null,null,null,null,null,null,null,null,null,null,null,null,null,null,null,null,null,null,null,null,null,null,null,null,null,null,null,null,null,null,null,null,null,null,null,null,null,null,null,null,null,null,null,null,null,null,null,null,null,null,null,null,null,null,{"$f":"IF(DF55<0,1,0)","v":0}]
[]
[]
[null,null,null,null,null,null,null,null,null,null,null,null,null,null,null,null,null,null,"or check box if 2023-24 APR was not submitted to HCD",null,null,null,null,null,null,null,null,null,null,null,null,null,null,null,null,null,null,null,null,null,null,null,null,null,null,null,null,null,null,null,null,null,null,null,null,null,null,null,null,null,null,null,null,"Not Submitted",null,null,null,null,null,null,null,null,null,null,null,null,null,null,null,null,null,null,null,null,null,null,null,null,null,null,null,null,null,null,null,null,null,null,null,null,null,null,null,null,null,null,null,null,null,null,null,null,null,null,null,null,null,null,null,null,null,null,null,null,null,null,null,null,null,null,null,null,null,null,null,null,null,null,null,null,null,null,null,null,null,null,null,null,null,null,null,null,null,null,null,null,null,null,null,null,null,null,null,null,null,null,null,null,null,null,null,null,null,null,null,null,{"$f":"IF(EA55<0,1,0)","v":0},null,null,null,null,null,null,null,null,null,null,null,null,false,null,null,null,null,null,null,null,null,null,null,null,null,null,null,null,null,null,false]
[]
[]
[]
[]
[null,null,null,null,"1.",null,null,null,"Beginning balance (balance from prior FY):",null,null,null,null,null,null,null,null,null,null,null,null,null,null,null,null,null,null,null,null,null,null,null,null,null,null,null,null,null,null,null,null,null,null,null,null,null,null,null,null,null,null,null,null,null,null,null,null,null,null,null,null,null,null,null,null,null,null,null,null,null,null,null,null,null,null,{"$f":"IF(GZ50=TRUE, CK55=\"0\", \"\")","v":""},null,null,null,null,null,null,null,null,null,null,null,null,null,null,null,null,null,null,null,null,null,null,null,null,null,null,null,null,null,null,null,null,null,null,null,null,null,null,null,null,null,null,null,null,null,null,null,null,null,null,null,null,null,null,{"$f":"DF55+(CK55)","v":0}]
[]
[null,null,null,null,null,null,null,null,null,null,null,null,null,null,null,null,null,null,null,null,null,null,null,null,null,null,null,null,null,null,null,null,null,null,null,null,null,null,null,null,null,null,null,null,null,null,null,null,null,null,null,null,null,null,null,null,null,null,null,null,null,null,null,null,null,null,null,null,null,null,null,null,null,null,0]
[]
[null,null,null,null,"2.",null,null,null,"Amount received during reporting period July 1, 2024 through June 30, 2025:",null,null,null,null,null,null,null,null,null,null,null,null,null,null,null,null,null,null,null,null,null,null,null,null,null,null,null,null,null,null,null,null,null,null,null,null,null,null,null,null,null,null,null,null,null,null,null,null,null,null,null,null,null,null,null,null,null,null,null,null,null,null,null,null,null,null,null,null,null,null,null,null,null,null,null,null,null,null,null,null,null,null,null,null,null,null,null,null,null,null,null,null,null,null,null,null,null,null,null,null,null,null,null,null,null,null,null,null,null,null,null,null,null,null,null,null,null,null,null,null,null,{"$f":"DF59+CK59","v":0}]
[null,null,null,null,null,null,null,null,null,null,null,null,null,null,null,null,null,null,null,null,null,null,null,null,null,null,null,null,null,null,null,null,null,null,null,null,null,null,null,null,null,null,null,null,null,null,null,null,null,null,null,null,null,null,null,null,null,null,null,null,null,null,null,null,null,null,null,null,null,null,null,null,null,null,null,null,null,null,null,null,null,null,null,null,null,null,null,null,null,null,null,null,null,null,null,null,null,null,null,null,null,null,null,null,null,null,null,null,null,null,null,null,null,null,null,null,null,null,null,null,null,null,null,null,null,null,null,null,null,null,null,null,null,null,null,null,null,null,null,null,null,null,null,null,null,null,null,null,null,null,null,null,null,null,null,null,null,null,null,null,null,null,null,null,null,null,null,null,null,null,null,null,null,null,null,null,{"$f":"SUM(FU47:FY59)","v":0}]
[null,null,null,null,null,null,null,null,"(Include interest earned on PI, RF and PI Admin funds)",null,null,null,null,null,null,null,null,null,null,null,null,null,null,null,null,null,null,null,null,null,null,null,null,null,null,null,null,null,null,null,null,null,null,null,null,null,null,null,null,null,null,null,null,null,null,null,null,null,null,null,null,null,null,null,null,null,null,null,null,null,null,null,null,null,null,null,null,null,null,null,null,null,null,null,null,null,null,null,null,null,null,null,null,null,null,null,null,null,null,null,null,null,null,null,null,null,null,null,null,null,null,null,null,null,null,null,null,null,null,null,null,null,null,null,null,null,null,null,null,null,null,null,null,null,null,null,null,null,null,null,null,null,null,null,null,null,null,null,null,null,null,null,null,null,null,null,null,null,null,null,null,null,null,null,null,null,null,null,null,null,null,null,null,null,null,null,null,null,null,null,null,null,null,null,null,null,null,null,null,null,null,null,null,null,null,null,null,null,null,null,null,null,null,null,null,null,null,{"$f":"IF(GZ50=TRUE,BL42=0,\"\")","v":""}]
[]
[null,null,null,null,"3.",null,null,null,"Total Available for reporting period July 1, 2024 through June 30, 2025:",null,null,null,null,null,null,null,null,null,null,null,null,null,null,null,null,null,null,null,null,null,null,null,null,null,null,null,null,null,null,null,null,null,null,null,null,null,null,null,null,null,null,null,null,null,null,null,null,null,null,null,null,null,null,null,null,null,null,null,null,null,null,null,null,null,null,null,null,null,null,null,null,null,null,null,null,null,null,null,{"$f":"CK55+CK59","v":0},null,null,null,null,null,null,null,null,null,null,null,null,null,null,null,null,null,null,null,null,{"$f":"DF55+DF59","v":0},null,null,null,null,null,null,null,null,null,null,null,null,null,null,null,null,null,null,null,null,{"$f":"EA55+EA59","v":0}]
[]
[]
[]
[]
[null,null,null,null,"4.",null,null,null,"Amount Disbursed for units also funded with HOME funds drawn down from HCD:                                 (Do not list these projects on page 2) ",null,null,null,null,null,null,null,null,null,null,null,null,null,null,null,null,null,null,null,null,null,null,null,null,null,null,null,null,null,null,null,null,null,null,null,null,null,null,null,null,null,null,null,null,null,null,null,null,null,null,null,null,null,null,null,null,null,null,null,null,null,null,null,null,null,null,null,null,null,null,null,null,null,null,null,null,null,null,null,null,null,null,null,null,null,null,null,null,null,null,null,null,null,null,null,null,null,null,null,null,null,null,null,null,null,null,null,null,null,null,null,null,null,null,null,null,null,null,null,null,null,{"$f":"DF68+CK68","v":0}]
[]
[]
[]
[null,null,null,null,null,null,null,null,null,null,null,null,null,null,null,null,null,null,null,null,null,null,null,null,null,null,null,null,null,null,null,null,null,null,null,null,null,null,null,null,null,null,null,null,null,null,null,null,null,null,null,null,null,null,null,null,null,null,null,null,null,null,null,null,null,null,null,null,null,null,null,null,null,null,null,null,null,null,null,null,null,null,null,null,null,null,null,null,null,null,null,null,null,null,null,null,null,null,null,null,null,null,null,null,null,null,null,null,null,null,null,null,null,null,null,null,null,null,null,null,null,null,null,null,null,null,null,null,null,null,null,null,null,null,null,null,null,null,null,null,null,null,null,null,null,null,null,null,null,null,null,null,null,null,null,null,null,null,null,null,null,null,null,null,null,null,null,null,null,null,null,null,null,null,null,null,{"$f":"CK59*0.1","v":0}]
[]
[null,null,null,null,"5.",null,null,null,"Amount Disbursed for units assisted with HOME Program Income or Recaptured Funds, but not with HOME funds drawn down from HCD (list each project on page 2):",null,null,null,null,null,null,null,null,null,null,null,null,null,null,null,null,null,null,null,null,null,null,null,null,null,null,null,null,null,null,null,null,null,null,null,null,null,null,null,null,null,null,null,null,null,null,null,null,null,null,null,null,null,null,null,null,null,null,null,null,null,null,null,null,null,null,null,null,null,null,null,null,null,null,null,null,null,null,null,null,null,null,null,null,null,null,null,null,null,null,null,null,null,null,null,null,null,null,null,null,null,null,null,null,null,null,null,null,null,null,null,null,null,null,null,null,null,null,null,null,null,{"$f":"DF74+CK74","v":0}]
[]
[]
[]
[]
[null,null,null,null,null,null,null,null,null,null,null,null,null,null,null,null,null,null,null,null,null,null,null,null,null,null,null,null,null,null,null,null,null,null,null,null,null,null,null,null,null,null,null,null,null,null,null,null,null,null,null,null,null,null,null,null,null,null,null,null,null,null,null,null,null,null,null,null,null,null,null,null,null,null,null,null,null,null,null,null,null,null,null,null,null,null,null,null,{"$f":"IF(BP80>(ROUND(CK59*0.1,0)),FU38,\"\")","v":""}]
[null,null,null,null,"6.",null,null,null,"Amount Retained for Administrative Funds:                                                                   (No more than 10% of received PI)"]
[]
[null,null,null,null,null,null,null,null,null,null,null,null,null,null,null,null,null,null,null,null,null,null,null,null,null,null,null,null,null,null,null,null,null,null,null,null,null,null,null,null,null,null,null,null,null,null,null,null,null,null,null,null,null,null,null,null,null,null,null,null,null,null,null,null,null,null,null,null,null,null,null,null,null,null,null,null,null,null,null,null,null,null,null,null,null,null,null,null,null,null,null,null,null,null,null,null,null,null,null,null,null,null,null,null,null,null,null,null,null,null,null,null,null,null,null,null,null,null,null,null,null,null,null,null,null,null,null,null,null,null,null,null,null,null,null,null,null,null,null,null,null,null,null,null,null,null,null,null,null,null,null,null,null,null,null,null,null,null,null,null,null,null,null,null,null,null,null,null,null,null,null,null,null,null,null,{"$f":"BL42=0","v":true}]
[]
[null,null,null,null,null,null,null,null,null,null,null,null,null,null,null,null,null,null,null,null,null,null,null,null,null,null,null,null,null,null,null,null,null,null,null,null,null,null,null,null,null,null,null,null,null,null,null,null,null,null,null,null,null,null,null,null,null,null,null,null,null,null,null,null,null,null,null,null,null,null,null,null,null,null,null,null,null,null,null,null,null,null,null,null,null,null,null,null,null,null,null,null,null,null,null,null,null,null,null,null,null,null,null,null,{"$f":"IF(EA90<0,\"Do not report a negative ending balance (line 8).\",\"\")","v":""}]
[]
[null,null,null,null,"7.",null,null,null,"Total Program Income/Recaptured Funds expended by the end of the reporting period:",null,null,null,null,null,null,null,null,null,null,null,null,null,null,null,null,null,null,null,null,null,null,null,null,null,null,null,null,null,null,null,null,null,null,null,null,null,null,null,null,null,null,null,null,null,null,null,null,null,null,null,null,null,null,null,null,null,null,null,null,null,null,null,null,null,null,null,null,null,null,null,null,null,null,null,null,null,null,null,null,null,null,null,null,null,null,null,null,null,null,null,null,null,null,null,null,null,null,null,null,null,null,null,null,null,null,null,null,null,null,null,null,null,null,null,null,null,null,null,null,null,{"$f":"EA68+EA74","v":0}]
[]
[]
[]
[null,null,null,null,"8.",null,null,null,"Balance of Program Income/Recaptured Funds in local account at the end of the reporting period:",null,null,null,null,null,null,null,null,null,null,null,null,null,null,null,null,null,null,null,null,null,null,null,null,null,null,null,null,null,null,null,null,null,null,null,null,null,null,null,null,null,null,null,null,null,null,null,null,null,null,null,null,null,null,null,null,null,null,null,null,null,null,null,null,null,null,null,null,null,null,null,null,null,null,null,null,null,null,null,null,null,null,null,null,null,null,null,null,null,null,null,null,null,null,null,null,null,null,null,null,null,null,null,null,null,null,null,null,null,null,null,null,null,null,null,null,null,null,null,null,null,{"$f":"EA63-EA68-EA74-BP80","v":0}]
[]
[]
[]
[null,null,null,null,"Program Income Administrative Funds Summary"]
[]
[]
[null,null,null,"Ending balance from 2023-24 APR, Attachment A (Line d)",null,null,null,null,null,null,null,null,null,null,null,null,null,null,null,null,null,null,null,null,null,null,null,null,null,null,null,null,null,null,null,null,null,null,null,null,null,null,null,null,null,null,null,null,null,null,null,null,null,null,null,null,null,null,null,null,null,null,null,null,null,null,null,null,null,null,null,null,null,null,null,null,null,null,null,null,null,null,null,null,null,null,null,{"$f":"IF(GH50=TRUE,BL50,\"\")","v":""},null,null,null,null,null,null,null,null,null,null,null,null,null,null,null,null,null,null,null,{"$f":"IF(BL97<>CK101,\"Beginning balance must match ending balance from last APR (Line d)\",\"\")","v":""}]
[]
[]
[]
[null,null,null,null,"a.",null,null,null,"Amount of PI Administrative Funds Beginning Balance:",null,null,null,null,null,null,null,null,null,null,null,null,null,null,null,null,null,null,null,null,null,null,null,null,null,null,null,null,null,null,null,null,null,null,null,null,null,null,null,null,null,null,null,null,null,null,null,null,null,null,null,null,null,null,null,null,null,null,null,null,null,null,null,null,null,null,null,null,null,null,null,null,null,null,null,null,null,null,null,null,null,null,null,null,null,null,null,null,null,null,null,null,null,null,null,null,null,null,null,null,null,null,"Comments/Explanations:"]
[]
[]
[]
[null,null,null,null,"b.",null,null,null,"Amount of PI Administrative Funds Received this reporting period:",null,null,null,null,null,null,null,null,null,null,null,null,null,null,null,null,null,null,null,null,null,null,null,null,null,null,null,null,null,null,null,null,null,null,null,null,null,null,null,null,null,null,null,null,null,null,null,null,null,null,null,null,null,null,null,null,null,null,null,null,null,null,null,null,null,null,null,null,null,null,null,null,null,null,null,null,null,null,null,{"$f":"BP80","v":0}]
[]
[]
[]
[null,null,null,null,"c.",null,null,null,"Amount of PI Administrative Funds Expended this reporting period:"]
[]
[]
[]
[null,null,null,null,"d.",null,null,null,"Balance of PI Administrative Funds Available:",null,null,null,null,null,null,null,null,null,null,null,null,null,null,null,null,null,null,null,null,null,null,null,null,null,null,null,null,null,null,null,null,null,null,null,null,null,null,null,null,null,null,null,null,null,null,null,null,null,null,null,null,null,null,null,null,null,null,null,null,null,null,null,null,null,null,null,null,null,null,null,null,null,null,null,null,null,null,null,{"$f":"CK101+CK105-CK109","v":0}]
[]
[]
[]
[null,null,null,null,"Anticipated Program Income/Recaptured Funds (2024/2025)"]
[]
[]
[null,null,null,null,"Per 24 CFR 91.220 and 91.320 HOME Recipients are required to report  PI/RF funds anticipated to be received during the next reporting period (July 1, 2025 through June 30, 2026)."]
[]
[]
[null,null,null,null,"IMPORTANT! Submit with APR a Project Setup/Completion Report and Project Drawdown Request for each PI-only project, and an Administrative Funds Drawdown Request for line c. Administrative Funds expenditures, or else evidence of prior submittal to your HOME Representative."]
[null,null,null,null,null,null,null,null,null,null,null,null,null,null,null,null,null,null,null,null,null,null,null,null,null,null,null,null,null,null,null,null,null,null,null,null,null,null,null,null,null,null,null,null,null,null,null,null,null,null,null,null,null,null,null,null,null,null,null,null,null,null,null,null,null,null,null,null,null,null,null,null,null,null,null,null,null,null,null,null,null,null,null,null,null,null,null,null,null,"Total anticipated HOME PI/RF receipts?",null,null,null,null,null,null,null,null,null,null,null,null,null,null,null,null,null,null,null,null,"Total # of Units?",null,null,null,null,null,null,null,null,"Anticipated PI-only HOME Activities                                                                      (FTHB, OOR, TBRA, Multifamily Projects)"]
[]
[]
[null,null,null,null,"9.",null,null,null,"Anticipated PI/RF amount received, total # of units, and types of HOME activites using only HOME PI/RF during the next reporting period, July 1, 2025 - June 30, 2026:"]
[]
[]
[]
[]
[]
[]
[]
[]
[null,null,{"$f":"AT1","v":"Attachment A - Program Income and Recaptured Funds"},null,null,null,null,null,null,null,null,null,null,null,null,null,null,null,null,null,null,null,null,null,null,null,null,null,null,null,null,null,null,null,null,null,null,null,null,null,null,null,null,null,null,null,null,null,null,null,null,null,null,null,null,null,null,null,null,null,null,null,null,null,null,null,null,null,null,null,null,null,null,null,null,null,null,null,null,null,null,null,null,null,null,null,null,null,null,null,null,null,null,null,null,null,null,null,null,null,null,null,null,null,null,null,null,null,null,null,null,null,null,null,null,null,null,null,null,null,null,null,null,null,null,null,null,null,null,null,null,null,null,null,null,null,null,null,null,null,null,null,null,null,null,null,null,null,null,null,null,null,null,null,null,null,null,null,null,null,null,null,null,null,null,null,null,"PAGE 2"]
[]
[]
[null,null,{"$f":"BK4","v":"HOME Annual Performance Report"}]
[]
[]
[null,null,{"$f":"BK7","v":"Reporting Period July 1, 2024 through June 30, 2025"}]
[]
[]
[]
[]
[null,null,null,null,"Chart 1 -  Projects funded with HOME Program Income (PI) / Recaptured Funds (RF) Only  (Do not include projects with HOME funds drawn down from HCD)"]
[]
[]
[null,null,null,null,"Note:  Yellow fields are required; blue fields will automatically populate.  Click on the \"Project Completed\" box 9 and a \"yes\" or \"no\" drop-down box will appear.   Any \"yes\" response will automatically populate the project address on the next page, on Chart 2, and that chart must be completed.  IMPORTANT: Submit a HOME Project Setup/Completion Report  and signed HOME Project Drawdown Request for each project, or attach evidence of prior submittal to HOME Program Representative."]
[]
[]
[]
[]
[]
[null,null,null,null,"1.",null,null,null,null,null,null,null,null,null,null,null,null,null,null,null,null,null,null,null,null,null,null,null,null,null,null,"2.",null,null,null,null,null,null,null,null,null,null,null,null,null,null,null,null,null,null,null,null,null,null,null,null,null,null,null,"3.",null,null,null,null,null,null,null,null,null,null,null,null,null,null,null,null,null,null,null,null,null,null,null,"4.",null,null,null,null,null,null,null,null,null,null,null,null,null,null,"5.",null,null,null,null,null,null,null,null,null,null,"6.",null,null,null,null,null,null,null,null,null,"7.",null,null,null,null,null,null,null,null,null,null,null,"8.",null,null,null,null,null,null,null,null,"9."]
[null,null,null,null,"N/A",null,null,null,null,null,null,null,null,null,null,null,null,null,null,null,null,null,null,null,null,null,null,null,null,null,null,"Address of Project Location",null,null,null,null,null,null,null,null,null,null,null,null,null,null,null,null,null,null,null,null,null,null,null,null,null,null,null,"Activity                                 (Choose activity)",null,null,null,null,null,null,null,null,null,null,null,null,null,null,null,null,null,null,null,null,null,null,null," Were Program Guidelines approved by HCD?",null,null,null,null,null,null,null,null,null,null,null,null,null,null,"Amount of Activity Funds (PI & RF) Expended this Reporting Period",null,null,null,null,null,null,null,null,null,null,"Amount of Activity Delivery Costs, PI & RF Expended this Reporting Period",null,null,null,null,null,null,null,null,null,"Total Expenditures",null,null,null,null,null,null,null,null,null,null,null,"# of HOME-Assisted Units",null,null,null,null,null,null,null,null,"Is the Project Completed?"]
[]
[]
[null,null,null,null,null,null,null,null,null,null,null,null,null,null,null,null,null,null,null,null,null,null,null,null,null,null,null,null,null,null,null,null,null,null,null,null,null,null,null,null,null,null,null,null,null,null,null,null,null,null,null,null,null,null,null,null,null,null,null,null,null,null,null,null,null,null,null,null,null,null,null,null,null,null,null,null,null,null,null,null,null,null,null,null,null,null,null,null,null,null,null,null,null,null,null,null,null,null,null,null,null,null,null,null,null,null,null,null,null,null,null,null,null,null,null,null,null,null,null,null,null,null,null,null,null,null,null,null,null,null,null,null,null,null,null,null,null,null,null,null,null,null,null,null,null,null,null,null,null,null,null,null,null,null,null,null,null,null,null,null,null,null,null,null,null,null,null,null,null,null,null,null,null,null,null,null,"Yes"]
[null,null,null,null,null,null,null,null,null,null,null,null,null,null,null,null,null,null,null,null,null,null,null,null,null,null,null,null,null,null,null,null,null,null,null,null,null,null,null,null,null,null,null,null,null,null,null,null,null,null,null,null,null,null,null,null,null,null,null,null,null,null,null,null,null,null,null,null,null,null,null,null,null,null,null,null,null,null,null,null,null,null,null,null,null,null,null,null,null,null,null,null,null,null,null,null,null,null,null,null,null,null,null,null,null,null,null,null,null,null,null,null,null,null,null,null,null,null,null,null,null,null,null,null,null,null,null,null,null,null,null,null,null,null,null,null,null,null,null,null,null,null,null,null,null,null,null,null,null,null,null,null,null,null,null,null,null,null,null,null,null,null,null,null,null,null,null,null,null,null,null,null,null,null,null,null,"No"]
[]
[]
[]
[]
[null,null,null,null,null,null,null,null,null,null,null,null,null,null,null,null,null,null,null,null,null,null,null,null,null,null,null,null,null,null,null,null,null,null,null,null,null,null,null,null,null,null,null,null,null,null,null,null,null,null,null,null,null,null,null,null,null,null,null,null,null,null,null,null,null,null,null,null,null,null,null,null,null,null,null,null,null,null,null,null,null,null,null,null,null,null,null,null,null,null,null,null,null,null,null,null,null,null,null,null,null,null,null,null,null,null,null,null,null,null,null,null,null,null,null,null,null,null,null,null,null,null,null,null,null,null,null,null,null,null,null,null,null,null,null,null,null,null,null,null,null,null,null,null,null,null,null,null,null,null,null,null,null,null,null,null,null,null,null,null,null,null,null,null,null,null,null,null,null,null,null,null,null,null,null,null,null,null,null,null,null,null,null,null,null,null,1]
[]
[null,null,null,null,null,null,null,null,null,null,null,null,null,null,null,null,null,null,null,null,null,null,null,null,null,null,null,null,null,null,null,null,null,null,null,null,null,null,null,null,null,null,null,null,null,null,null,null,null,null,null,null,null,null,null,null,null,null,null,null,null,null,null,null,null,null,null,null,null,null,null,null,null,null,null,null,null,null,null,null,null,null,null,null,null,null,null,null,null,null,null,null,null,null,null,null,null,null,null,null,null,null,null,null,null,null,null,null,null,null,null,null,null,null,null,null,null,null,null,null,null,null,null,null,null,null,null,null,null,null,null,null,null,null,null,null,null,null,null,null,null,null,null,null,null,null,null,null,null,null,null,null,null,null,null,null,null,null,null,null,null,null,null,null,null,null,null,null,null,null,null,null,null,null,null,null,null,null,null,null,null,null,null,null,null,null,null,null,null,null,null,null,null,null,null,null,null,null,null,null,null,null,null,null,null,null,"(Select Activity)"]
[null,null,null,null,null,null,null,null,null,null,null,null,null,null,null,null,null,null,null,null,null,null,null,null,null,null,null,null,null,null,null,null,null,null,null,null,null,null,null,null,null,null,null,null,null,null,null,null,null,null,null,null,null,null,null,null,null,null,null,null,null,null,null,null,null,null,null,null,null,null,null,null,null,null,null,null,null,null,null,null,null,null,null,null,null,null,null,null,null,null,null,null,null,null,null,null,null,null,null,null,null,null,null,null,null,null,null,null,null,null,null,null,null,null,null,null,null,null,null,null,null,null,null,null,null,null,null,null,null,null,null,null,null,null,null,null,null,null,null,null,null,null,null,null,null,null,null,null,null,null,null,null,null,null,null,null,null,null,null,null,null,null,null,null,null,null,null,null,null,null,null,null,null,null,null,null,null,null,null,null,null,null,null,null,null,null,null,null,null,null,null,null,null,null,null,null,null,null,null,null,null,null,null,null,null,null,"(Select Activity)"]
[null,null,null,null,null,null,null,null,null,null,null,null,null,null,null,null,null,null,null,null,null,null,null,null,null,null,null,null,null,null,null,null,null,null,null,null,null,null,null,null,null,null,null,null,null,null,null,null,null,null,null,null,null,null,null,null,null,null,null,null,null,null,null,null,null,null,null,null,null,null,null,null,null,null,null,null,null,null,null,null,null,null,null,null,null,null,null,null,null,null,null,null,null,null,null,null,null,null,null,null,null,null,null,null,null,null,null,null,null,null,null,null,null,null,null,null,null,null,null,null,null,null,null,null,null,null,null,null,null,null,null,null,null,null,null,null,null,null,null,null,null,null,null,null,null,null,null,null,null,null,null,null,null,null,null,null,null,null,null,null,null,null,null,null,null,null,null,null,null,null,null,null,null,null,null,null,null,null,null,null,null,null,null,null,null,null,1]
[null,null,null,null,null,null,null,null,null,null,null,null,null,null,null,null,null,null,null,null,null,null,null,null,null,null,null,null,null,null,null,null,null,null,null,null,null,null,null,null,null,null,null,null,null,null,null,null,null,null,null,null,null,null,null,null,null,null,null,null,null,null,null,null,null,null,null,null,null,null,null,null,null,null,null,null,null,null,null,null,null,null,null,null,null,null,null,null,null,null,null,null,null,null,null,null,null,null,null,null,null,null,null,null,null,null,null,null,null,null,null,null,null,null,null,null,null,null,null,{"$f":"CU171+DF171","v":0},null,null,null,null,null,null,null,null,null,null,null,null,null,null,null,null,null,null,null,null,null,null,null,null,null,null,null,null,null,null,null,null,null,null,null,null,null,null,null,null,null,null,null,null,null,null,null,null,null,null,null,null,null,null,null,null,null,null,null,null,null,null,null,null,null,null,null,null,null,null,null,null,null,null,null,null,null,1,null,null,null,null,null,null,null,null,null,null,null,null,null,null,null,null,null,null,null,null,null,null,null,null,null,null,null,null,null,null,null,null,null,null,null,null,null,null,null,null,null,null,null,null,null,null,null,null,null,null,null,null,null,null,null,null,null,null,null,null,null,"1 (0-30%)",null,null,null,null,null,null,null,null,null,null,null,null,null,null,null,null,null,null,null,null,null,null,null,null,"09 - Vacant Unit",null,null,null,null,null,null,null,null,null,null,null,null,null,null,null,null,null,null,null,"1-Single/Non-Elderly"]
[null,null,null,null,null,null,null,null,null,null,null,null,null,null,null,null,null,null,null,null,null,null,null,null,null,null,null,null,null,null,null,null,null,null,null,null,null,null,null,null,null,null,null,null,null,null,null,null,null,null,null,null,null,null,null,null,null,null,null,null,null,null,null,null,null,null,null,null,null,null,null,null,null,null,null,null,null,null,null,null,null,null,null,null,null,null,null,null,null,null,null,null,null,null,null,null,null,null,null,null,null,null,null,null,null,null,null,null,null,null,null,null,null,null,null,null,null,null,null,{"$f":"CU172+DF172","v":0},null,null,null,null,null,null,null,null,null,null,null,null,null,null,null,null,null,null,null,null,null,null,null,null,null,null,null,null,null,null,null,null,null,null,null,null,null,null,null,null,null,null,null,null,null,null,null,null,null,null,null,null,null,null,null,null,null,null,null,null,null,null,null,null,null,null,null,null,null,null,null,null,null,null,null,null," ",1,null,null,null,null,null,null,null,null,"FTHB Acquisition Only",null,null,null,null,null,null,null,null,null,null,null,null,null,null,null,null,null,null,null,null,null,null,null,null,null,null,null,null,null,null,null,null,null,null,null,null,null,null,null,null,null,null,null,null,null,null,null,null,null,null,null,null,"2 (31 - 50%)",null,null,null,null,null,null,null,null,null,null,null,null,null,null,null,null,null,null,null,null,null,null,null,null,"10 - Manager's Unit",null,null,null,null,null,null,null,null,null,null,null,null,null,null,null,null,null,null,null,"2-Elderly"]
[null,null,null,null,null,null,null,null,null,null,null,null,null,null,null,null,null,null,null,null,null,null,null,null,null,null,null,null,null,null,null,null,null,null,null,null,null,null,null,null,null,null,null,null,null,null,null,null,null,null,null,null,null,null,null,null,null,null,null,null,null,null,null,null,null,null,null,null,null,null,null,null,null,null,null,null,null,null,null,null,null,null,null,null,null,null,null,null,null,null,null,null,null,null,null,null,null,null,null,null,null,null,null,null,null,null,null,null,null,null,null,null,null,null,null,null,null,null,null,0,null,null,null,null,null,null,null,null,null,null,null,null,null,null,null,null,null,null,null,null,null,null,null,null,null,null,null,null,null,null,null,null,null,null,null,null,null,null,null,null,null,null,null,null,null,null,null,null,null,null,null,null,null,null,null,null,null,null,null,null,null,null,null,null,null,null,null,null,null,null,null,null,null,null,null,null,null,1,null,null,null,null,null,null,null,null,"OOR",null,null,null,null,null,null,null,null,null,null,null,null,null,null,null,null,null,null,null,null,null,null,null,null,null,null,null,null,null,null,null,null,null,null,null,null,null,null,null,null,null,null,null,null,null,null,null,null,null,null,null,null,"3 (51 - 60%)",null,null,null,null,null,null,null,null,null,null,null,null,null,null,null,null,null,null,null,null,null,null,null,null,"11 - White",null,null,null,null,null,null,null,null,null,null,null,null,null,null,null,null,null,null,null,"3-Related/Single Parent"]
[null,null,null,null,null,null,null,null,null,null,null,null,null,null,null,null,null,null,null,null,null,null,null,null,null,null,null,null,null,null,null,null,null,null,null,null,null,null,null,null,null,null,null,null,null,null,null,null,null,null,null,null,null,null,null,null,null,null,null,null,null,null,null,null,null,null,null,null,null,null,null,null,null,null,null,null,null,null,null,null,null,null,null,null,null,null,null,null,null,null,null,null,null,null,null,null,null,null,null,null,null,null,null,null,null,null,null,null,null,null,null,null,null,null,null,null,null,null,null,0,null,null,null,null,null,null,null,null,null,null,null,null,null,null,null,null,null,null,null,null,null,null,null,null,null,null,null,null,null,null,null,null,null,null,null,null,null,null,null,null,null,null,null,null,null,null,null,null,null,null,null,null,null,null,null,null,null,null,null,null,null,null,null,null,null,null,null,null,null,null,null,null,null,null,null,null,null,1,null,null,null,null,null,null,null,null,"TBRA",null,null,null,null,null,null,null,null,null,null,null,null,null,null,null,null,null,null,null,null,null,null,null,null,null,null,null,null,null,null,null,null,null,null,null,null,null,null,null,null,null,null,null,null,null,null,null,null,null,null,null,null,"4 (61 - 80%)",null,null,null,null,null,null,null,null,null,null,null,null,null,null,null,null,null,null,null,null,null,null,null,null,"12 - Black/African American",null,null,null,null,null,null,null,null,null,null,null,null,null,null,null,null,null,null,null,"4-Related/Two Parents"]
[null,null,null,null,null,null,null,null,null,null,null,null,null,null,null,null,null,null,null,null,null,null,null,null,null,null,null,null,null,null,null,null,null,null,null,null,null,null,null,null,null,null,null,null,null,null,null,null,null,null,null,null,null,null,null,null,null,null,null,null,null,null,null,null,null,null,null,null,null,null,null,null,null,null,null,null,null,null,null,null,null,null,null,null,null,null,null,null,null,null,null,null,null,null,null,null,null,null,null,null,null,null,null,null,null,null,null,null,null,null,null,null,null,null,null,null,null,null,null,0,null,null,null,null,null,null,null,null,null,null,null,null,null,null,null,null,null,null,null,null,null,null,null,null,null,null,null,null,null,null,null,null,null,null,null,null,null,null,null,null,null,null,null,null,null,null,null,null,null,null,null,null,null,null,null,null,null,null,null,null,null,null,null,null,null,null,null,null,null,null,null,null,null,null,null,null,null,1,null,null,null,null,null,null,null,null,"Rental New Const. acquisition",null,null,null,null,null,null,null,null,null,null,null,null,null,null,null,null,null,null,null,null,null,null,null,null,null,null,null,null,null,null,null,null,null,null,null,null,null,null,null,null,null,null,null,null,null,null,null,null,null,null,null,null,"9  Vacant",null,null,null,null,null,null,null,null,null,null,null,null,null,null,null,null,null,null,null,null,null,null,null,null,"13 - Asian",null,null,null,null,null,null,null,null,null,null,null,null,null,null,null,null,null,null,null,"5-Other"]
[null,null,null,null,null,null,null,null,null,null,null,null,null,null,null,null,null,null,null,null,null,null,null,null,null,null,null,null,null,null,null,null,null,null,null,null,null,null,null,null,null,null,null,null,null,null,null,null,null,null,null,null,null,null,null,null,null,null,null,null,null,null,null,null,null,null,null,null,null,null,null,null,null,null,null,null,null,null,null,null,null,null,null,null,null,null,null,null,null,null,null,null,null,null,null,null,null,null,null,null,null,null,null,null,null,null,null,null,null,null,null,null,null,null,null,null,null,null,null,0,null,null,null,null,null,null,null,null,null,null,null,null,null,null,null,null,null,null,null,null,null,null,null,null,null,null,null,null,null,null,null,null,null,null,null,null,null,null,null,null,null,null,null,null,null,null,null,null,null,null,null,null,null,null,null,null,null,null,null,null,null,null,null,null,null,null,null,null,null,null,null,null,null,null,null,null,null,1,null,null,null,null,null,null,null,null,"Rental New Const. w/o acquisition",null,null,null,null,null,null,null,null,null,null,null,null,null,null,null,null,null,null,null,null,null,null,null,null,null,null,null,null,null,null,null,null,null,null,null,null,null,null,null,null,null,null,null,null,null,null,null,null,null,null,null,null,null,null,null,null,null,null,null,null,null,null,null,null,null,null,null,null,null,null,null,null,null,null,null,null,null,"14 - American Indian/Alaskan Native",null,null,null,null,null,null,null,null,null,null,null,null,null,null,null,null,null,null,null,"9-Vacant Unit"]
[null,null,null,null,null,null,null,null,null,null,null,null,null,null,null,null,null,null,null,null,null,null,null,null,null,null,null,null,null,null,null,null,null,null,null,null,null,null,null,null,null,null,null,null,null,null,null,null,null,null,null,null,null,null,null,null,null,null,null,null,null,null,null,null,null,null,null,null,null,null,null,null,null,null,null,null,null,null,null,null,null,null,null,null,null,null,null,null,null,null,null,null,null,null,null,null,null,null,null,null,null,null,null,null,null,null,null,null,null,null,null,null,null,null,null,null,null,null,null,0,null,null,null,null,null,null,null,null,null,null,null,null,null,null,null,null,null,null,null,null,null,null,null,null,null,null,null,null,null,null,null,null,null,null,null,null,null,null,null,null,null,null,null,null,null,null,null,null,null,null,null,null,null,null,null,null,null,null,null,null,null,null,null,null,null,null,null,null,null,null,null,null,null,null,null,null,null,1,null,null,null,null,null,null,null,null,"Rental Rehabilitation",null,null,null,null,null,null,null,null,null,null,null,null,null,null,null,null,null,null,null,null,null,null,null,null,null,null,null,null,null,null,null,null,null,null,null,null,null,null,null,null,null,null,null,null,null,null,null,null,null,null,null,null,"Yes",null,null,null,null,null,null,null,null,null,null,null,null,null,null,null,null,null,null,null,null,null,null,null,null,"15 - Native Hawaiian/Other Pacific Islander"]
[null,null,null,null,null,null,null,null,null,null,null,null,null,null,null,null,null,null,null,null,null,null,null,null,null,null,null,null,null,null,null,null,null,null,null,null,null,null,null,null,null,null,null,null,null,null,null,null,null,null,null,null,null,null,null,null,null,null,null,null,null,null,null,null,null,null,null,null,null,null,null,null,null,null,null,null,null,null,null,null,null,null,null,null,null,null,null,null,null,null,null,null,null,null,null,null,null,null,null,null,null,null,null,null,null,null,null,null,null,null,null,null,null,null,null,null,null,null,null,0,null,null,null,null,null,null,null,null,null,null,null,null,null,null,null,null,null,null,null,null,null,null,null,null,null,null,null,null,null,null,null,null,null,null,null,null,null,null,null,null,null,null,null,null,null,null,null,null,null,null,null,null,null,null,null,null,null,null,null,null,null,null,null,null,null,null,null,null,null,null,null,null,null,null,null,null,null,1,null,null,null,null,null,null,null,null,"FTHB Acquisition Rehabilitation",null,null,null,null,null,null,null,null,null,null,null,null,null,null,null,null,null,null,null,null,null,null,null,null,null,null,null,null,null,null,null,null,null,null,null,null,null,null,null,null,null,null,null,null,null,null,null,null,null,null,null,null,"No",null,null,null,null,null,null,null,null,null,null,null,null,null,null,null,null,null,null,null,null,null,null,null,null,"16 - American Indian/Alaskan Native & White",null,null,null,null,null,null,null,null,null,null,null,null,null,null,null,null,null,null,null,"1-Section 8"]
[null,null,null,null,null,null,null,null,null,null,null,null,null,null,null,null,null,null,null,null,null,null,null,null,null,null,null,null,null,null,null,null,null,null,null,null,null,null,null,null,null,null,null,null,null,null,null,null,null,null,null,null,null,null,null,null,null,null,null,null,null,null,null,null,null,null,null,null,null,null,null,null,null,null,null,null,null,null,null,null,null,null,null,null,null,null,null,null,null,null,null,null,null,null,null,null,null,null,null,null,null,null,null,null,null,null,null,null,null,null,null,null,null,null,null,null,null,null,null,0,null,null,null,null,null,null,null,null,null,null,null,null,null,null,null,null,null,null,null,null,null,null,null,null,null,null,null,null,null,null,null,null,null,null,null,null,null,null,null,null,null,null,null,null,null,null,null,null,null,null,null,null,null,null,null,null,null,null,null,null,null,null,null,null,null,null,null,null,null,null,null,null,null,null,null,null,null,1,null,null,null,null,null,null,null,null,"0 Bdrm",null,null,null,null,null,null,null,null,null,null,null,null,null,null,null,null,null,null,null,null,null,null,null,null,null,null,null,null,null,null,null,null,null,null,null,null,null,null,null,null,null,null,null,null,null,null,null,null,null,null,null,null,null,null,null,null,null,null,null,null,null,null,null,null,null,null,null,null,null,null,null,null,null,null,null,null,null,"17 - Asian & White",null,null,null,null,null,null,null,null,null,null,null,null,null,null,null,null,null,null,null,"2-HOME"]
[null,null,null,null,null,null,null,null,null,null,null,null,null,null,null,null,null,null,null,null,null,null,null,null,null,null,null,null,null,null,null,null,null,null,null,null,null,null,null,null,null,null,null,null,null,null,null,null,null,null,null,null,null,null,null,null,null,null,null,null,null,null,null,null,null,null,null,null,null,null,null,null,null,null,null,null,null,null,null,null,null,null,null,null,null,null,null,null,null,null,null,null,null,null,null,null,null,null,null,null,null,null,null,null,null,null,null,null,null,null,null,null,null,null,null,null,null,null,null,0,null,null,null,null,null,null,null,null,null,null,null,null,null,null,null,null,null,null,null,null,null,null,null,null,null,null,null,null,null,null,null,null,null,null,null,null,null,null,null,null,null,null,null,null,null,null,null,null,null,null,null,null,null,null,null,null,null,null,null,null,null,null,null,null,null,null,2,null,null,null,null,null,null,null,null,null,null,1,null,null,null,null,null,null,null,null,"1 Bdrm",null,null,null,null,null,null,null,null,null,null,null,null,null,null,null,null,null,null,null,null,null,null,null,null,null,null,null,null,null,null,null,null,null,null,null,null,null,null,null,null,null,null,"1 Person",null,null,null,null,null,null,null,null,null,null,null,null,null,null,null,null,null,null,null,null,null,null,null,null,null,null,null,null,null,null,null,null,null,null,"18 - Black/African American & White",null,null,null,null,null,null,null,null,null,null,null,null,null,null,null,null,null,null,null,"3-Other"]
[null,null,null,null,null,null,null,null,null,null,null,null,null,null,null,null,null,null,null,null,null,null,null,null,null,null,null,null,null,null,null,null,null,null,null,null,null,null,null,null,null,null,null,null,null,null,null,null,null,null,null,null,null,null,null,null,null,null,null,null,null,null,null,null,null,null,null,null,null,null,null,null,null,null,null,null,null,null,null,null,null,null,null,null,null,null,null,null,null,null,null,null,null,null,null,null,null,null,null,null,null,null,null,null,null,null,null,null,null,null,null,null,null,null,null,null,null,null,null,0,null,null,null,null,null,null,null,null,null,null,null,null,null,null,null,null,null,null,null,null,null,null,null,null,null,null,null,null,null,null,null,null,null,null,null,null,null,null,null,null,null,null,null,null,null,null,null,null,null,null,null,null,null,null,null,null,null,null,null,null,null,null,null,null,null,null,null,null,null,null,null,null,null,null,null,null,null,1,null,null,null,null,null,null,null,null,"2 Bdrms",null,null,null,null,null,null,null,null,null,null,null,null,null,null,null,null,null,null,null,null,null,null,null,null,null,null,null,null,null,null,null,null,null,null,null,null,null,null,null,null,null,null,"2 Persons",null,null,null,null,null,null,null,null,null,null,null,null,null,null,null,null,null,null,null,null,null,null,null,null,null,null,null,null,null,null,null,null,null,null,"19 - American Indian/Alaskan Native & Black/African",null,null,null,null,null,null,null,null,null,null,null,null,null,null,null,null,null,null,null,"4-No Assistance"]
[null,null,null,null,null,null,null,null,null,null,null,null,null,null,null,null,null,null,null,null,null,null,null,null,null,null,null,null,null,null,null,null,null,null,null,null,null,null,null,null,null,null,null,null,null,null,null,null,null,null,null,null,null,null,null,null,null,null,null,null,null,null,null,null,null,null,null,null,null,null,null,null,null,null,null,null,null,null,null,null,null,null,null,null,null,null,null,null,null,null,null,null,null,null,null,null,null,null,null,null,null,null,null,null,null,null,null,null,null,null,null,null,null,null,null,null,null,null,null,0,null,null,null,null,null,null,null,null,null,null,null,null,null,null,null,null,null,null,null,null,null,null,null,null,null,null,null,null,null,null,null,null,null,null,null,null,null,null,null,null,null,null,null,null,null,null,null,null,null,null,null,null,null,null,null,null,null,null,null,null,null,null,null,null,null,null,null,null,null,null,null,null,null,null,null,null,null,1,null,null,null,null,null,null,null,null,"3 Bdrms",null,null,null,null,null,null,null,null,null,null,null,null,null,null,null,null,null,null,null,null,null,null,null,null,null,null,null,null,null,null,null,null,null,null,null,null,null,null,null,null,null,null,"3 Persons",null,null,null,null,null,null,null,null,null,null,null,null,null,null,null,null,null,null,null,null,null,null,null,null,null,null,null,null,null,null,null,null,null,null,"20 - Other",null,null,null,null,null,null,null,null,null,null,null,null,null,null,null,null,null,null,null,"5-Vacant Unit"]
[null,null,null,null,null,null,null,null,null,null,null,null,null,null,null,null,null,null,null,null,null,null,null,null,null,null,null,null,null,null,null,null,null,null,null,null,null,null,null,null,null,null,null,null,null,null,null,null,null,null,null,null,null,null,null,null,null,null,null,null,null,null,null,null,null,null,null,null,null,null,null,null,null,null,null,null,null,null,null,null,null,null,null,null,null,null,null,null,null,null,null,null,null,null,null,null,null,null,null,null,null,null,null,null,null,null,null,null,null,null,null,null,null,null,null,null,null,null,null,0,null,null,null,null,null,null,null,null,null,null,null,null,null,null,null,null,null,null,null,null,null,null,null,null,null,null,null,null,null,null,null,null,null,null,null,null,null,null,null,null,null,null,null,null,null,null,null,null,null,null,null,null,null,null,null,null,null,null,null,null,null,null,null,null,null,null,null,null,null,null,null,null,null,null,null,null,null,1,null,null,null,null,null,null,null,null,"4 Bdrms",null,null,null,null,null,null,null,null,null,null,null,null,null,null,null,null,null,null,null,null,null,null,null,null,null,null,null,null,null,null,null,null,null,null,null,null,null,null,null,null,null,null,"4 Persons"]
[null,null,null,null,null,null,null,null,null,null,null,null,null,null,null,null,null,null,null,null,null,null,null,null,null,null,null,null,null,null,null,null,null,null,null,null,null,null,null,null,null,null,null,null,null,null,null,null,null,null,null,null,null,null,null,null,null,null,null,null,null,null,null,null,null,null,null,null,null,null,null,null,null,null,null,null,null,null,null,null,null,null,null,null,null,null,null,null,null,null,null,null,null,null,null,null,null,null,null,null,null,null,null,null,null,null,null,null,null,null,null,null,null,null,null,null,null,null,null,0,null,null,null,null,null,null,null,null,null,null,null,null,null,null,null,null,null,null,null,null,null,null,null,null,null,null,null,null,null,null,null,null,null,null,null,null,null,null,null,null,null,null,null,null,null,null,null,null,null,null,null,null,null,null,null,null,null,null,null,null,null,null,null,null,null,null,null,null,null,null,null,null,null,null,null,null,null,1,null,null,null,null,null,null,null,null,"5 or more Bdrms",null,null,null,null,null,null,null,null,null,null,null,null,null,null,null,null,null,null,null,null,null,null,null,null,null,null,null,null,null,null,null,null,null,null,null,null,null,null,null,null,null,null,"5 Persons",null,null,null,null,null,null,null,null,null,null,null,null,null,null,null,null,null,null,null,null,null,null,null,null,null,null,null,null,null,null,null,null,null,null,null,null,null,null,null,null,null,null,null,null,null,null,null,null,null,null,"(Select Activity)"]
[null,null,null,null,null,null,null,null,null,null,null,null,null,null,null,null,null,null,null,null,null,null,null,null,null,null,null,null,null,null,null,null,null,null,null,null,null,null,null,null,null,null,null,null,null,null,null,null,null,null,null,null,null,null,null,null,null,null,null,null,null,null,null,null,null,null,null,null,null,null,null,null,null,null,null,null,null,null,null,null,null,null,null,null,null,null,null,null,null,null,null,null,null,null,null,null,null,null,null,null,null,null,null,null,null,null,null,null,null,null,null,null,null,null,null,null,null,null,null,0,null,null,null,null,null,null,null,null,null,null,null,null,null,null,null,null,null,null,null,null,null,null,null,null,null,null,null,null,null,null,null,null,null,null,null,null,null,null,null,null,null,null,null,null,null,null,null,null,null,null,null,null,null,null,null,null,null,null,null,null,null,null,null,null,null,null,null,null,null,null,null,null,null,null,null,null,null,1,null,null,null,null,null,null,null,null,null,null,null,null,null,null,null,null,null,null,null,null,null,null,null,null,null,null,null,null,null,null,null,null,null,null,null,null,null,null,null,null,null,null,null,null,null,null,null,null,null,null,null,"6 Persons",null,null,null,null,null,null,null,null,null,null,null,null,null,null,null,null,null,null,null,null,null,null,null,null,null,null,null,null,null,null,null,null,null,null,null,null,null,null,null,null,null,null,null,null,null,null,null,null,null,null,"FTHB Acquisition Only"]
[null,null,null,null,null,null,null,null,null,null,null,null,null,null,null,null,null,null,null,null,null,null,null,null,null,null,null,null,null,null,null,null,null,null,null,null,null,null,null,null,null,null,null,null,null,null,null,null,null,null,null,null,null,null,null,null,null,null,null,null,null,null,null,null,null,null,null,null,null,null,null,null,null,null,null,null,null,null,null,null,null,null,null,null,null,null,null,null,null,null,null,null,null,null,null,null,null,null,null,null,null,null,null,null,null,null,null,null,null,null,null,null,null,null,null,null,null,null,null,0,null,null,null,null,null,null,null,null,null,null,null,null,null,null,null,null,null,null,null,null,null,null,null,null,null,null,null,null,null,null,null,null,null,null,null,null,null,null,null,null,null,null,null,null,null,null,null,null,null,null,null,null,null,null,null,null,null,null,null,null,null,null,null,null,null,null,null,null,null,null,null,null,null,null,null,null,null,1,null,null,null,null,null,null,null,null,"1 - Tenant",null,null,null,null,null,null,null,null,null,null,null,null,null,null,null,null,null,null,null,null,null,null,null,null,null,null,null,null,null,null,null,null,null,null,null,null,null,null,null,null,null,null,"7 Persons",null,null,null,null,null,null,null,null,null,null,null,null,null,null,null,null,null,null,null,null,null,null,null,null,null,null,null,null,null,null,null,null,null,null,null,null,null,null,null,null,null,null,null,null,null,null,null,null,null,null,"OOR"]
[null,null,null,null,null,null,null,null,null,null,null,null,null,null,null,null,null,null,null,null,null,null,null,null,null,null,null,null,null,null,null,null,null,null,null,null,null,null,null,null,null,null,null,null,null,null,null,null,null,null,null,null,null,null,null,null,null,null,null,null,null,null,null,null,null,null,null,null,null,null,null,null,null,null,null,null,null,null,null,null,null,null,null,null,null,null,null,null,null,null,null,null,null,null,null,null,null,null,null,null,null,null,null,null,null,null,null,null,null,null,null,null,null,null,null,null,null,null,null,0,null,null,null,null,null,null,null,null,null,null,null,null,null,null,null,null,null,null,null,null,null,null,null,null,null,null,null,null,null,null,null,null,null,null,null,null,null,null,null,null,null,null,null,null,null,null,null,null,null,null,null,null,null,null,null,null,null,null,null,null,null,null,null,null,null,null,null,null,null,null,null,null,null,null,null,null,null,1,null,null,null,null,null,null,null,null,"2 - Owner",null,null,null,null,null,null,null,null,null,null,null,null,null,null,null,null,null,null,null,null,null,null,null,null,null,null,null,null,null,null,null,null,null,null,null,null,null,null,null,null,null,null,"8 or more",null,null,null,null,null,null,null,null,null,null,null,null,null,null,null,null,null,null,null,null,null,null,null,null,null,null,null,null,null,null,null,null,null,null,null,null,null,null,null,null,null,null,null,null,null,null,null,null,null,null,"TBRA"]
[null,null,null,null,null,null,null,null,null,null,null,null,null,null,null,null,null,null,null,null,null,null,null,null,null,null,null,null,null,null,null,null,null,null,null,null,null,null,null,null,null,null,null,null,null,null,null,null,null,null,null,null,null,null,null,null,null,null,null,null,null,null,null,null,null,null,null,null,null,null,null,null,null,null,null,null,null,null,null,null,null,null,null,null,null,null,null,null,null,null,null,null,null,null,null,null,null,null,null,null,null,null,null,null,null,null,null,null,null,null,null,null,null,null,null,null,null,null,null,0,null,null,null,null,null,null,null,null,null,null,null,null,null,null,null,null,null,null,null,null,null,null,null,null,null,null,null,null,null,null,null,null,null,null,null,null,null,null,null,null,null,null,null,null,null,null,null,null,null,null,null,null,null,null,null,null,null,null,null,null,null,null,null,null,null,null,null,null,null,null,null,null,null,null,null,null,null,1,null,null,null,null,null,null,null,null,"3 - Vacant",null,null,null,null,null,null,null,null,null,null,null,null,null,null,null,null,null,null,null,null,null,null,null,null,null,null,null,null,null,null,null,null,null,null,null,null,null,null,null,null,null,null,null,null,null,null,null,null,null,null,null,null,null,null,null,null,null,null,null,null,null,null,null,null,null,null,null,null,null,null,null,null,null,null,null,null,null,null,null,null,null,null,null,null,null,null,null,null,null,null,null,null,null,"Rental New Const. acquisition"]
[null,null,null,null,"Total Expenditures (should equal line 5 \"Total\" from page 1).  If more lines are needed, submit additional APRs with just Attachment A pages 2 and 3 completed.  This is very common with TBRA PI-only projects.",null,null,null,null,null,null,null,null,null,null,null,null,null,null,null,null,null,null,null,null,null,null,null,null,null,null,null,null,null,null,null,null,null,null,null,null,null,null,null,null,null,null,null,null,null,null,null,null,null,null,null,null,null,null,null,null,null,null,null,null,null,null,null,null,null,null,null,null,null,null,null,null,null,null,null,null,null,null,null,null,null,null,null,null,null,null,null,null,null,null,null,null,null,null,null,null,null,null,null,null,null,null,null,null,null,null,null,null,null,null,null,null,null,null,{"$f":"SUM(DP171:EA188)","v":0},null,null,null,null,null,null,null,null,null,null,null,null,null,null,null,null,null,null,null,null,null,null,null,null,null,null,null,null,null,null,null,null,null,null,null,null,null,null,null,null,null,null,null,null,null,null,null,null,null,null,null,null,null,null,null,null,null,null,null,null,null,null,null,null,null,null,null,null,null,null,null,null,null,null,null,null,null,null,null,null,null,null,null,null,null,null,null,null,null,null,null,null,null,null,null,null,null,null,null,null,null,null,null,null,null,null,null,null,null,null,null,null,null,null,null,null,null,null,null,null,null,null,null,null,null,null,null,null,null,null,null,null,null,null,null,null,null,null,null,null,null,null,null,null,null,null,null,null,null,null,null,null,null,null,null,null,null,null,null,null,null,null,null,null,null,null,null,null,null,null,null,null,null,null,null,null,null,null,null,null,"Rental New Const. w/o acquisition"]
[null,null,null,null,null,null,null,null,null,null,null,null,null,null,null,null,null,null,null,null,null,null,null,null,null,null,null,null,null,null,null,null,null,null,null,null,null,null,null,null,null,null,null,null,null,null,null,null,null,null,null,null,null,null,null,null,null,null,null,null,null,null,null,null,null,null,null,null,null,null,null,null,null,null,null,null,null,null,null,null,null,null,null,null,null,null,null,null,null,null,null,null,null,null,null,null,null,null,null,null,null,null,null,null,null,null,null,null,null,null,null,null,null,null,null,null,null,null,null,null,null,null,null,null,null,null,null,null,null,null,null,null,null,null,null,null,null,null,null,null,null,null,null,null,null,null,null,null,null,null,null,null,null,null,null,null,null,null,null,null,null,null,null,null,null,null,null,null,null,null,null,null,null,null,null,null,null,null,null,null,null,null,null,null,null,null,null,null,null,null,null,null,null,null,null,null,null,null,null,null,null,null,null,null,null,null,null,null,null,null,null,null,null,null,null,null,null,null,null,null,null,null,null,null,null,null,null,null,null,null,null,null,null,null,null,null,null,null,null,null,null,null,null,null,null,null,null,null,null,null,null,null,null,null,null,null,null,null,null,null,null,null,null,null,null,null,null,null,null,null,null,null,null,null,null,null,null,null,null,null,null,null,null,null,null,null,null,null,null,null,null,null,null,null,null,null,null,null,null,null,"Rental Rehabilitation"]
[null,null,null,null,null,null,null,null,null,null,null,null,null,null,null,null,null,null,null,null,null,null,null,null,null,null,null,null,null,null,null,null,null,null,null,null,null,null,null,null,null,null,null,null,null,null,null,null,null,null,null,null,null,null,null,null,null,null,null,null,null,null,null,null,null,null,null,null,null,null,null,null,null,null,null,null,null,null,null,null,null,null,null,null,null,null,null,null,null,null,null,null,null,null,null,null,null,null,null,null,null,null,null,null,null,null,null,null,null,null,null,null,null,null,null,null,null,null,null,null,null,null,null,null,null,null,null,null,null,null,null,null,null,null,null,null,null,null,null,null,null,null,null,null,null,null,null,null,null,null,null,null,null,null,null,null,null,null,null,null,null,null,null,null,null,null,null,null,null,null,null,null,null,null,null,null,null,null,null,null,null,null,null,null,null,null,null,null,null,null,null,null,null,null,null,null,null,null,null,null,null,null,null,null,null,null,null,null,null,null,null,null,null,null,null,null,null,null,null,null,null,null,null,null,null,null,null,null,null,null,null,null,null,null,null,null,null,null,null,null,null,null,null,null,null,null,null,null,null,null,null,null,null,null,null,null,null,null,null,null,null,null,null,null,null,null,null,null,null,null,null,null,null,null,null,null,null,null,null,null,null,null,null,null,null,null,null,null,null,null,null,null,null,null,null,null,null,null,null,null,"FTHB Acquisition Rehabilitation"]
[]
[]
[null,null,null,null,null,null,null,null,null,null,null,null,null,null,null,null,null,null,null,null,null,null,null,null,null,null,null,null,null,null,null,null,null,null,null,null,null,null,null,null,null,null,null,null,null,null,null,null,null,null,null,null,null,null,null,null,null,null,null,null,null,null,null,null,null,null,null,null,null,null,null,null,null,null,null,null,null,null,null,null,null,null,null,null,null,null,null,null,null,null,null,null,null,null,null,null,null,null,null,null,null,null,null,null,null,null,null,null,null,null,null,null,null,null,null,null,null,null,null,null,null,null,null,null,null,null,null,null,null,null,null,null,null,null,null,null,null,null,null,null,null,null,null,null,null,null,null,null,null,null,null,null,null,null,null,null,null,null,null,null,null,null,null,null,null,null,null,"PAGE 3"]
[null,null,{"$f":"AT1","v":"Attachment A - Program Income and Recaptured Funds"}]
[]
[]
[null,null,{"$f":"BK4","v":"HOME Annual Performance Report"}]
[]
[]
[null,null,{"$f":"BK7","v":"Reporting Period July 1, 2024 through June 30, 2025"}]
[]
[]
[]
[null,null,null,"Chart 2 -  Program Income Reporting By Household Characteristics "]
[]
[]
[null,null,null,"List each assisted-unit funded with only State HOME Program Income (PI) / Recaptured Funds (RF).  In the second column, indicate the Total HOME PI/RF in the project (this may not be the same as funds expended in the 2023/2024 Reporting Period, as additional funds may have been expended in prior Reporting Periods).  For multi-family projects and TBRA, complete a line for each household.  For TBRA only, complete the \"Tenant Contribution\" and \"Subsidy Amount\" columns, which are under the \"Monthly Rent\" heading.  One household per line only."]
[]
[]
[]
[]
[]
[]
[]
[null,null,null,"1.",null,null,null,null,null,null,null,null,null,null,null,null,null,null,null,null,null,null,null,null,null,"2.",null,null,null,null,null,null,null,null,null,null,"3.",null,null,null,null,null,null,null,null,"4.",null,null,null,null,null,null,null,null,null,null,null,"5.",null,null,null,null,null,null,null,null,null,null,null,null,null,null,null,null,null,null,null,null,null,null,null,null,null,null,null,null,null,null,"6.",null,null,null,null,null,null,null,null,null,null,null,null,null,null,null,null,null,null,null,null,null,null,null,null,null,null,null,null,null,null,null,null,null,null,null,null,null,null,null,null,null,null,null,null,null,null,null,null,null,null,null,null,null,null,null,"7."]
[null,null,null,"Address of Project Location                                                       (automatically populates from Chart 1) ",null,null,null,null,null,null,null,null,null,null,null,null,null,null,null,null,null,null,null,null,null,"Total HOME     PI/RF Amount (include ADC)",null,null,null,null,null,null,null,null,null,null,"Number of Bedrooms",null,null,null,null,null,null,null,null,"Occupancy",null,null,null,null,null,null,null,null,null,null,null,"Monthly Rent                                                             (Include Tenant-Paid Utilities)",null,null,null,null,null,null,null,null,null,null,null,null,null,null,null,null,null,null,null,null,null,null,null,null,null,null,null,null,null,null,"Household Data",null,null,null,null,null,null,null,null,null,null,null,null,null,null,null,null,null,null,null,null,null,null,null,null,null,null,null,null,null,null,null,null,null,null,null,null,null,null,null,null,null,null,null,null,null,null,null,null,null,null,null,null,null,null,null,"Rental Assistance"]
[]
[]
[]
[null,null,null,null,null,null,null,null,null,null,null,null,null,null,null,null,null,null,null,null,null,null,null,null,null,null,null,null,null,null,null,null,null,null,null,null,null,null,null,null,null,null,null,null,null,null,null,null,null,null,null,null,null,null,null,null,null,null,null,null,null,null,null,null,null,null,null,null,null,null,null,null,null,null,null,null,null,null,null,null,null,null,null,null,null,null,null,null,"a. Monthly Gross                    Income",null,null,null,null,null,null,null,null,null,null,"b. % of Area Median Income",null,null,null,null,null,null,null,null,null,null,"c. Head of Household (HH)",null,null,null,null,null,null,null,null,null,null,null,null,null,null,null,null,null,null,null,null,"d. Household"]
[]
[null,null,null,null,null,null,null,null,null,null,null,null,null,null,null,null,null,null,null,null,null,null,null,null,null,null,null,null,null,null,null,null,null,null,null,null,null,null,null,null,null,null,null,null,null,null,null,null,null,null,null,null,null,null,null,null,null,"a. Tenant Contribution (include Utilities)",null,null,null,null,null,null,null,null,"b. Subsidy Amount",null,null,null,null,null,null,null,null,null,null,"c. Total Housing Cost"]
[]
[null,null,null,null,null,null,null,null,null,null,null,null,null,null,null,null,null,null,null,null,null,null,null,null,null,null,null,null,null,null,null,null,null,null,null,null,null,null,null,null,null,null,null,null,null,null,null,null,null,null,null,null,null,null,null,null,null,null,null,null,null,null,null,null,null,null,null,null,null,null,null,null,null,null,null,null,null,null,null,null,null,null,null,null,null,null,null,null,null,null,null,null,null,null,null,null,null,null,null,null,null,null,null,null,null,null,null,null,null,null,"(1) Ethnicity   Hispanic?",null,null,null,null,null,null,"(2)                                                                  Race",null,null,null,null,null,null,null,null,null,null,null,null,null,"(1)                Size",null,null,null,null,null," (2)                          Type"]
[]
[]
[]
[]
[]
[]
[null,null,null,{"$f":"IF(GP171=2,AF171,\"\")","v":""},null,null,null,null,null,null,null,null,null,null,null,null,null,null,null,null,null,null,null,null,null,null,null,null,null,null,null,null,null,null,null,null,null,null,null,null,null,null,null,null,null,null,null,null,null,null,null,null,null,null,null,null,null,null,null,null,null,null,null,null,null,null,null,null,null,null,null,null,null,null,null,null,null,{"$f":"SUM(BF232:BY232)","v":0}]
[null,null,null,"",null,null,null,null,null,null,null,null,null,null,null,null,null,null,null,null,null,null,null,null,null,null,null,null,null,null,null,null,null,null,null,null,null,null,null,null,null,null,null,null,null,null,null,null,null,null,null,null,null,null,null,null,null,null,null,null,null,null,null,null,null,null,null,null,null,null,null,null,null,null,null,null,null,{"$f":"SUM(BF233:BY233)","v":0}]
[null,null,null,{"$f":"IF(GP173=2,AF173,\"\")","v":""},null,null,null,null,null,null,null,null,null,null,null,null,null,null,null,null,null,null,null,null,null,null,null,null,null,null,null,null,null,null,null,null,null,null,null,null,null,null,null,null,null,null,null,null,null,null,null,null,null,null,null,null,null,null,null,null,null,null,null,null,null,null,null,null,null,null,null,null,null,null,null,null,null,{"$f":"SUM(BF234:BY234)","v":0}]
[null,null,null,"",null,null,null,null,null,null,null,null,null,null,null,null,null,null,null,null,null,null,null,null,null,null,null,null,null,null,null,null,null,null,null,null,null,null,null,null,null,null,null,null,null,null,null,null,null,null,null,null,null,null,null,null,null,null,null,null,null,null,null,null,null,null,null,null,null,null,null,null,null,null,null,null,null,{"$f":"SUM(BF235:BY235)","v":0}]
[null,null,null,"",null,null,null,null,null,null,null,null,null,null,null,null,null,null,null,null,null,null,null,null,null,null,null,null,null,null,null,null,null,null,null,null,null,null,null,null,null,null,null,null,null,null,null,null,null,null,null,null,null,null,null,null,null,null,null,null,null,null,null,null,null,null,null,null,null,null,null,null,null,null,null,null,null,0]
[null,null,null,"",null,null,null,null,null,null,null,null,null,null,null,null,null,null,null,null,null,null,null,null,null,null,null,null,null,null,null,null,null,null,null,null,null,null,null,null,null,null,null,null,null,null,null,null,null,null,null,null,null,null,null,null,null,null,null,null,null,null,null,null,null,null,null,null,null,null,null,null,null,null,null,null,null,0]
[null,null,null,"",null,null,null,null,null,null,null,null,null,null,null,null,null,null,null,null,null,null,null,null,null,null,null,null,null,null,null,null,null,null,null,null,null,null,null,null,null,null,null,null,null,null,null,null,null,null,null,null,null,null,null,null,null,null,null,null,null,null,null,null,null,null,null,null,null,null,null,null,null,null,null,null,null,0]
[null,null,null,"",null,null,null,null,null,null,null,null,null,null,null,null,null,null,null,null,null,null,null,null,null,null,null,null,null,null,null,null,null,null,null,null,null,null,null,null,null,null,null,null,null,null,null,null,null,null,null,null,null,null,null,null,null,null,null,null,null,null,null,null,null,null,null,null,null,null,null,null,null,null,null,null,null,0]
[null,null,null,"",null,null,null,null,null,null,null,null,null,null,null,null,null,null,null,null,null,null,null,null,null,null,null,null,null,null,null,null,null,null,null,null,null,null,null,null,null,null,null,null,null,null,null,null,null,null,null,null,null,null,null,null,null,null,null,null,null,null,null,null,null,null,null,null,null,null,null,null,null,null,null,null,null,0]
[null,null,null,"",null,null,null,null,null,null,null,null,null,null,null,null,null,null,null,null,null,null,null,null,null,null,null,null,null,null,null,null,null,null,null,null,null,null,null,null,null,null,null,null,null,null,null,null,null,null,null,null,null,null,null,null,null,null,null,null,null,null,null,null,null,null,null,null,null,null,null,null,null,null,null,null,null,0]
[null,null,null,"",null,null,null,null,null,null,null,null,null,null,null,null,null,null,null,null,null,null,null,null,null,null,null,null,null,null,null,null,null,null,null,null,null,null,null,null,null,null,null,null,null,null,null,null,null,null,null,null,null,null,null,null,null,null,null,null,null,null,null,null,null,null,null,null,null,null,null,null,null,null,null,null,null,0]
[null,null,null,"",null,null,null,null,null,null,null,null,null,null,null,null,null,null,null,null,null,null,null,null,null,null,null,null,null,null,null,null,null,null,null,null,null,null,null,null,null,null,null,null,null,null,null,null,null,null,null,null,null,null,null,null,null,null,null,null,null,null,null,null,null,null,null,null,null,null,null,null,null,null,null,null,null,0]
[null,null,null,"",null,null,null,null,null,null,null,null,null,null,null,null,null,null,null,null,null,null,null,null,null,null,null,null,null,null,null,null,null,null,null,null,null,null,null,null,null,null,null,null,null,null,null,null,null,null,null,null,null,null,null,null,null,null,null,null,null,null,null,null,null,null,null,null,null,null,null,null,null,null,null,null,null,0]
[null,null,null,"",null,null,null,null,null,null,null,null,null,null,null,null,null,null,null,null,null,null,null,null,null,null,null,null,null,null,null,null,null,null,null,null,null,null,null,null,null,null,null,null,null,null,null,null,null,null,null,null,null,null,null,null,null,null,null,null,null,null,null,null,null,null,null,null,null,null,null,null,null,null,null,null,null,0]
[null,null,null,"",null,null,null,null,null,null,null,null,null,null,null,null,null,null,null,null,null,null,null,null,null,null,null,null,null,null,null,null,null,null,null,null,null,null,null,null,null,null,null,null,null,null,null,null,null,null,null,null,null,null,null,null,null,null,null,null,null,null,null,null,null,null,null,null,null,null,null,null,null,null,null,null,null,0]
[null,null,null,"",null,null,null,null,null,null,null,null,null,null,null,null,null,null,null,null,null,null,null,null,null,null,null,null,null,null,null,null,null,null,null,null,null,null,null,null,null,null,null,null,null,null,null,null,null,null,null,null,null,null,null,null,null,null,null,null,null,null,null,null,null,null,null,null,null,null,null,null,null,null,null,null,null,0]
[null,null,null,"",null,null,null,null,null,null,null,null,null,null,null,null,null,null,null,null,null,null,null,null,null,null,null,null,null,null,null,null,null,null,null,null,null,null,null,null,null,null,null,null,null,null,null,null,null,null,null,null,null,null,null,null,null,null,null,null,null,null,null,null,null,null,null,null,null,null,null,null,null,null,null,null,null,0]
[null,null,null,"",null,null,null,null,null,null,null,null,null,null,null,null,null,null,null,null,null,null,null,null,null,null,null,null,null,null,null,null,null,null,null,null,null,null,null,null,null,null,null,null,null,null,null,null,null,null,null,null,null,null,null,null,null,null,null,null,null,null,null,null,null,null,null,null,null,null,null,null,null,null,null,null,null,0]
[]
[null,null,null,null,null,null,null,null,null,null,null,null,null,null,null,null,null,null,null,null,null,null,null,null,null,null,null,null,null,null,null,null,null,null,null,null,null,null,null,null,null,null,null,null,null,null,null,null,null,null,null,null,null,null,null,null,null,null,null,null,null,null,null,null,null,null,null,null,null,null,null,null,null,null,null,null,null,null,null,null,null,null,null,null,null,null,null,null,null,null,null,null,null,null,null,null,null,null,null,null,null,null,null,null,null,null,null,null,null,null,null,null,null,null,null,null,null,null,null,null,null,null,null,null,null,null,null,null,null,null,null,null,null,null,null,null,null,null,null,null,null,null,null,null,null,null,null,null,null,null,null,null,null,null,null,null,null,null,null,null,null,null,null,null,null,null,null,"PAGE 4"]
[null,null,{"$f":"AT1","v":"Attachment A - Program Income and Recaptured Funds"}]
[]
[]
[null,null,{"$f":"BK4","v":"HOME Annual Performance Report"}]
[]
[]
[null,null,{"$f":"BK7","v":"Reporting Period July 1, 2024 through June 30, 2025"}]
[]
[]
[]
[]
[null,null,null,null,"Instructions"]
[]
[]
[]
[null,null,null,null,"Note:"]
[]
[null,null,null,null,"•  All areas marked in blue are fields that will automatically populate based on the data you enter in other fields. "]
[]
[]
[null,null,null,null,"•  For name of HOME Recipient, insert your city or county’s name."]
[]
[]
[]
[null,null,null,null,"Program Income/Recaptured Funds Summary"]
[]
[]
[]
[null,null,null,null,"(1)",null,null,null,"Enter the beginning balance of Program Income and Recaptured Funds in each column.  The amount in each column should reflect the ending balance from the prior"]
[]
[]
[null,null,null,null,null,null,null,null,"Reporting Period."]
[]
[]
[null,null,null,null,"(2)",null,null,null,"Identify the amount of funds received during the Reporting Period in both Program Income and Recaptured Funds. "]
[]
[]
[null,null,null,null,"(3)",null,null,null,"Do not enter.  Total Available for the reporting period will automatically populate."]
[]
[]
[null,null,null,null,"(4)",null,null,null,"Enter the amount of Program Income and Recaptured Funds used with funds from HOME contract."]
[]
[]
[null,null,null,null,"(5)",null,null,null,"Identify the amount of funds for units assisted with PI and RF, but not with HOME funds drawn down from HCD."]
[]
[]
[null,null,null,null,"(6)",null,null,null,"Enter the amount of PI retained for Administative Funds (no more than 10% of PI received)."]
[]
[]
[null,null,null,null,"(7)",null,null,null,"Do not enter - Total Program Income/Recaptured Funds expended.  This will automatically populate."]
[]
[]
[null,null,null,null,"(8)",null,null,null,"Do not enter - Balance of Program Income/Recaptured Funds.  This will automatically populate."]
[]
[]
[]
[null,null,null,null,"Program Income Administrative Funds Summary "]
[]
[]
[]
[null,null,null,null,"a)",null,null,null,"Enter beginning balance of Program Income Administrative Funds.  This is the ending balance from the previous Annual PI Report. "]
[]
[]
[null,null,null,null,"b)",null,null,null,"Do not enter - The Program Income Administrative Funds Received this Reporting Period will automatically populate from (6)."]
[]
[]
[null,null,null,null,"c)",null,null,null,"Enter amount of Program Income Administrative Funds Expended in the Reporting Period."]
[]
[]
[null,null,null,null,"d)",null,null,null,"Do not enter - The balance of Program Income/Recaptured Funds Available will automatically populate from (a), (b) and (c)."]
[]
[]
[]
[null,null,null,null,"Chart 1 -  Projects funded with HOME Program Income (PI) / Recaptured Funds (RF) Only  (Do not include projects with HOME funds drawn down from HCD)"]
[]
[]
[]
[null,null,null,"Provide project information in each column:"]
[]
[]
[null,null,null,"Column 1:  Enter name of owner(s) or project name."]
[]
[]
[null,null,null,"Column 2:  Enter address of project location. "]
[]
[]
[null,null,null,"Column 3:  From the drop-down menu, select the project activity."]
[]
[]
[null,null,null,"Column 4:  From the drop-down menu, indicate whether or not the Program Guidelines were approved by HCD."]
[]
[]
[null,null,null,"Column 5:  Enter the amount of expended Program Income/Recaptured Funds during the reporting period."]
[]
[]
[null,null,null,"Column 6:  Enter the amount of Activity Delivery Costs and Program Income/Recaptured Funds expended (leave blank if TBRA) during the reporting period."]
[]
[]
[null,null,null,"Column 7:  Do not enter total expenditures, as this will automatically populate."]
[]
[]
[null,null,null,"Column 8:  Enter the number of HOME-Assisted units."]
[]
[]
[null,null,null,"Column 9:  From the drop-down menu, indicate whether or not the project has been completed."]
[]
[]
[]
[null,null,{"$f":"AT1","v":"Attachment A - Program Income and Recaptured Funds"},null,null,null,null,null,null,null,null,null,null,null,null,null,null,null,null,null,null,null,null,null,null,null,null,null,null,null,null,null,null,null,null,null,null,null,null,null,null,null,null,null,null,null,null,null,null,null,null,null,null,null,null,null,null,null,null,null,null,null,null,null,null,null,null,null,null,null,null,null,null,null,null,null,null,null,null,null,null,null,null,null,null,null,null,null,null,null,null,null,null,null,null,null,null,null,null,null,null,null,null,null,null,null,null,null,null,null,null,null,null,null,null,null,null,null,null,null,null,null,null,null,null,null,null,null,null,null,null,null,null,null,null,null,null,null,null,null,null,null,null,null,null,null,null,null,null,null,null,null,null,null,null,null,null,null,null,null,null,null,null,null,null,null,null,"PAGE 5"]
[]
[]
[]
[null,null,{"$f":"BK4","v":"HOME Annual Performance Report"}]
[]
[]
[null,null,{"$f":"BK7","v":"Reporting Period July 1, 2024 through June 30, 2025"}]
[]
[]
[]
[]
[null,null,null,null,"Chart 2 -  Program Income Reporting by Household Characteristics"]
[]
[]
[]
[null,null,null,null,"Column 1:  Do not enter.  If the project is complete and you marked \"yes\" in the \"Project Completed\" column in Chart 1, the address will automatically populate."]
[]
[]
[null,null,null,null,"Column 2:  Enter the total amount of Program Income/Recaptured Funds.  (Note: This total amount may not be the same as Chart 1, as additional funds may have been"]
[]
[]
[null,null,null,null,null,null,null,null,null,null,null,null,null,null,null," used in the prior reporting period.)"]
[]
[]
[null,null,null,null,"Column 3:  From the drop-down menu, select the total number of bedrooms."]
[]
[]
[null,null,null,null,"Column 4:  From the drop-down menu, select the code for occupancy."]
[]
[]
[null,null,null,null,"Columns 5a, 5b, and 5c:  For TBRA, enter the Tenant Contribution (including utilities) and HOME Subsidy Amount.  The Total Housing Cost column will automatically populate."]
[]
[]
[null,null,null,null,"Column 6a:  Enter the monthly gross income."]
[]
[]
[null,null,null,null,"Column 6b:  From the drop-down menu, select the appropriate code for the AMI."]
[]
[]
[null,null,null,null,"Column 6c(1) and 6c(2):  From the drop-down menus, select the appropriate codes for ethnicity and race."]
[]
[]
[null,null,null,null,"Column 6d(1):  From the drop-down menu, select the household size."]
[]
[]
[null,null,null,null,"Column 6d(2):  From the drop-down menu, select the household type."]
[]
[]
[null,null,null,null,"Column 7:  From the drop-down menu, select the type of rental assistance."]
[]
[]
[]
[]
[]
[]
[]
[]
[]
[]
[]
[]
[]
[]
[]
[]
[]
[]
[]
[]
[]
[]
[]
[]
[]
[]
[]
[]
[]
[]
[]
[]
[]
[]
[]
[]
[]
[]
[]
[]
[]
[]
[]
[]
[]
[]
[null,null,"END OF DOCUMENT"]
[]
[]
[]
[]
[]
[]
[]
[]
[]
[]
[]
[]
[]
[]
[]
[]
[]
[]
[]
[]
[]
[]
[]
[]
[]
[]
[]
[]
[]
[]
[]
[]
[]
[]
[]
[]
[]
[]
[]
[]
[]
[]
[]
[]
[]
[]
[]
[]
[]
[]
[]
[]
[]
[]
[]
[]
[]
[]
[]
[]
[]
[]
[]
[]
[]
[]
[]
[]
[]
[]
[]
[]
[]
[]
[]
[]
[]
[]
[]
[]
[]
[]
[]
[]
[]
[]
[]
[]
[]
[]
[]
[]
[]
[]
[]
[]
[]
[]
[]
[]
[]
[]
[]
[]
[]
[]
[]
[]
[]
[]
[]
[]
[]
[]
[]
[]
[]
[]
[]
[]
[]
[]
[]
[]
[]
[]
[]
[]
[]
[]
[]
[]
[]
[]
[]
[]
[]
[]
[]
[]
[]
[]
[]
[]
[]
[]
[]
[]
[]
[]
[]
[]
[]
[]
[]
[]
[]
[]
[]
[]
[]
[]
[]
[]
[]
[]
[]
[]
[]
[]
[]
[]
[]
[]
[]
[]
[]
[]
[]
[]
[]
[]
[]
[]
[]
[]
[]
[]
[]
[]
[]
[]
[]
[]
[]
[]
[]
[]
[]
[]
[]
[]
[]
[]
[null,null,null,null,null,null,null,null,null,null,null,null,null,null,null,null,null,null,null,null,null,null,null,null,null,null,null,null,null,null,null,null,null,null,null,null,null,null,null,null,null,null,null,null,null,null,null,null,null,null,null,null,null,null,null,null,null,null,null,null,null,null,null,null,null,null,null,null,null,null,null,null,null,null,null,null,null,null,null,null,null,null,null,null,null,null,null,null,null,null,null,null,null,null,null,null,null,null,null,null,null,null,null,null,null,null,null,null,null,null,null,null,null,null,null,null,null,null,null,null,null,null,null,null,null,null,null,null,null,null,null,null,null,null,null,null,null,null,null,null,null,null,null,null,null,null,null,null,null,null,null,null,null,null,null,null,null,null,null,null,null,null,null,null,null,null,null,null,null,null,null,null,null,null,"FTHB Acquisition Only",null,null,null,null,null,null,null,null,null,null,null,null,null,null,null,null,null,null,null,null,null,null,null,null,null,null,null,null,null,null,null,null,"Rental New Const. acqusition"]
[null,null,null,null,null,null,null,null,null,null,null,null,null,null,null,null,null,null,null,null,null,null,null,null,null,null,null,null,null,null,null,null,null,null,null,null,null,null,null,null,null,null,null,null,null,null,null,null,null,null,null,null,null,null,null,null,null,null,null,null,null,null,null,null,null,null,null,null,null,null,null,null,null,null,null,null,null,null,null,null,null,null,null,null,null,null,null,null,null,null,null,null,null,null,null,null,null,null,null,null,null,null,null,null,null,null,null,null,null,null,null,null,null,null,null,null,null,null,null,null,null,null,null,null,null,null,null,null,null,null,null,null,null,null,null,null,null,null,null,null,null,null,null,null,null,null,null,null,null,null,null,null,null,null,null,null,null,null,null,null,null,null,null,null,null,null,null,null,null,null,null,null,null,null,"OOR",null,null,null,null,null,null,null,null,null,null,null,null,null,null,null,null,null,null,null,null,null,null,null,null,null,null,null,null,null,null,null,null,"Rental New Const. w/o acqusition"]
[null,null,null,null,null,null,null,null,null,null,null,null,null,null,null,null,null,null,null,null,null,null,null,null,null,null,null,null,null,null,null,null,null,null,null,null,null,null,null,null,null,null,null,null,null,null,null,null,null,null,null,null,null,null,null,null,null,null,null,null,null,null,null,null,null,null,null,null,null,null,null,null,null,null,null,null,null,null,null,null,null,null,null,null,null,null,null,null,null,null,null,null,null,null,null,null,null,null,null,null,null,null,null,null,null,null,null,null,null,null,null,null,null,null,null,null,null,null,null,null,null,null,null,null,null,null,null,null,null,null,null,null,null,null,null,null,null,null,null,null,null,null,null,null,null,null,null,null,null,null,null,null,null,null,null,null,null,null,null,null,null,null,null,null,null,null,null,null,null,null,null,null,null,null,"TBRA",null,null,null,null,null,null,null,null,null,null,null,null,null,null,null,null,null,null,null,null,null,null,null,null,null,null,null,null,null,null,null,null,"Rental Rehabilitation"]
[null,null,null,null,null,null,null,null,null,null,null,null,null,null,null,null,null,null,null,null,null,null,null,null,null,null,null,null,null,null,null,null,null,null,null,null,null,null,null,null,null,null,null,null,null,null,null,null,null,null,null,null,null,null,null,null,null,null,null,null,null,null,null,null,null,null,null,null,null,null,null,null,null,null,null,null,null,null,null,null,null,null,null,null,null,null,null,null,null,null,null,null,null,null,null,null,null,null,null,null,null,null,null,null,null,null,null,null,null,null,null,null,null,null,null,null,null,null,null,null,null,null,null,null,null,null,null,null,null,null,null,null,null,null,null,null,null,null,null,null,null,null,null,null,null,null,null,null,null,null,null,null,null,null,null,null,null,null,null,null,null,null,null,null,null,null,null,null,null,null,null,null,null,null,"Rental New Const. acqusition",null,null,null,null,null,null,null,null,null,null,null,null,null,null,null,null,null,null,null,null,null,null,null,null,null,null,null,null,null,null,null,null,"FTHB Acquisition Only"]
[null,null,null,null,null,null,null,null,null,null,null,null,null,null,null,null,null,null,null,null,null,null,null,null,null,null,null,null,null,null,null,null,null,null,null,null,null,null,null,null,null,null,null,null,null,null,null,null,null,null,null,null,null,null,null,null,null,null,null,null,null,null,null,null,null,null,null,null,null,null,null,null,null,null,null,null,null,null,null,null,null,null,null,null,null,null,null,null,null,null,null,null,null,null,null,null,null,null,null,null,null,null,null,null,null,null,null,null,null,null,null,null,null,null,null,null,null,null,null,null,null,null,null,null,null,null,null,null,null,null,null,null,null,null,null,null,null,null,null,null,null,null,null,null,null,null,null,null,null,null,null,null,null,null,null,null,null,null,null,null,null,null,null,null,null,null,null,null,null,null,null,null,null,null,"Rental New Const. w/o acqusition",null,null,null,null,null,null,null,null,null,null,null,null,null,null,null,null,null,null,null,null,null,null,null,null,null,null,null,null,null,null,null,null,"FTHB Acquisition Rehabilitation"]
[null,null,null,null,null,null,null,null,null,null,null,null,null,null,null,null,null,null,null,null,null,null,null,null,null,null,null,null,null,null,null,null,null,null,null,null,null,null,null,null,null,null,null,null,null,null,null,null,null,null,null,null,null,null,null,null,null,null,null,null,null,null,null,null,null,null,null,null,null,null,null,null,null,null,null,null,null,null,null,null,null,null,null,null,null,null,null,null,null,null,null,null,null,null,null,null,null,null,null,null,null,null,null,null,null,null,null,null,null,null,null,null,null,null,null,null,null,null,null,null,null,null,null,null,null,null,null,null,null,null,null,null,null,null,null,null,null,null,null,null,null,null,null,null,null,null,null,null,null,null,null,null,null,null,null,null,null,null,null,null,null,null,null,null,null,null,null,null,null,null,null,null,null,null,"Rental Rehabilitation",null,null,null,null,null,null,null,null,null,null,null,null,null,null,null,null,null,null,null,null,null,null,null,null,null,null,null,null,null,null,null,null,"OOR"]
[null,null,null,null,null,null,null,null,null,null,null,null,null,null,null,null,null,null,null,null,null,null,null,null,null,null,null,null,null,null,null,null,null,null,null,null,null,null,null,null,null,null,null,null,null,null,null,null,null,null,null,null,null,null,null,null,null,null,null,null,null,null,null,null,null,null,null,null,null,null,null,null,null,null,null,null,null,null,null,null,null,null,null,null,null,null,null,null,null,null,null,null,null,null,null,null,null,null,null,null,null,null,null,null,null,null,null,null,null,null,null,null,null,null,null,null,null,null,null,null,null,null,null,null,null,null,null,null,null,null,null,null,null,null,null,null,null,null,null,null,null,null,null,null,null,null,null,null,null,null,null,null,null,null,null,null,null,null,null,null,null,null,null,null,null,null,null,null,null,null,null,null,null,null,"FTHB Acquisition Rehabilitation",null,null,null,null,null,null,null,null,null,null,null,null,null,null,null,null,null,null,null,null,null,null,null,null,null,null,null,null,null,null,null,null,"TBRA"]

{"sheet":"Link Data A","index":2,"n_rows":2,"n_cols":32,"rows_kept":2,"cut":false,"hidden":true,"merged":[]}
["Home Recipient","HR Type","Preparer","Preparer Org","Phone","Email","F","G","H=F+G","I","J","K=I+J","L=K-R","M","N","O=M+N","P","Q","R","S=P+Q","T=O+S","U=H+L-T","V","W","X","Y=V+W-X","H+V","T+X","K+Z-AA","22)  Anticipated PI & RF for 2025/2026","23)  Anticipated Total # of Units","24)  Aniticipated HOME Activities"]
[{"$f":"'Att A'!AC13","v":""},{"$f":"IF(Matrix!BO23=TRUE,Matrix!BR22, IF(Matrix!BZ23=TRUE,Matrix!CD22, IF(Matrix!CP23=TRUE,Matrix!CS22, IF(Matrix!BO28,Matrix!BR28, IF(Matrix!CE28,Matrix!CH27,\"\")))))","v":""},{"$f":"'Att A'!D17","v":""},{"$f":"'Att A'!BK17","v":""},{"$f":"'Att A'!DD17","v":""},{"$f":"'Att A'!DQ17","v":""},{"$f":"'Att A'!CK55","v":0},{"$f":"'Att A'!DF55","v":0},{"$f":"'Att A'!EA55","v":0},{"$f":"'Att A'!CK59","v":0},{"$f":"'Att A'!DF59","v":0},{"$f":"'Att A'!EA59","v":0},{"$f":"L2-S2","v":0},{"$f":"'Att A'!CK68","v":0},{"$f":"'Att A'!DF68","v":0},{"$f":"'Att A'!EA68","v":0},{"$f":"'Att A'!CK74","v":0},{"$f":"'Att A'!DF74","v":0},{"$f":"'Att A'!BP80","v":0},{"$f":"'Att A'!EA74","v":0},{"$f":"'Att A'!EA86","v":0},{"$f":"'Att A'!EA90","v":0},{"$f":"'Att A'!CK101","v":0},{"$f":"'Att A'!CK105","v":0},{"$f":"'Att A'!CK109","v":0},{"$f":"'Att A'!CK113","v":0},{"$f":"I2+W2","v":0},{"$f":"U2+Y2","v":0},{"$f":"L2+AA2-AB2","v":0},{"$f":"'Att A'!CL128","v":0},{"$f":"'Att A'!DG128","v":0},{"$f":"'Att A'!DP128","v":0}]

{"sheet":"Link Data A1","index":3,"n_rows":18,"n_cols":16,"rows_kept":18,"cut":false,"hidden":true,"merged":[]}
[{"$f":"'Att A'!$AC$13","v":""},{"$f":"IF(Matrix!BO23=TRUE,Matrix!BR22, IF(Matrix!BZ23=TRUE,Matrix!CD22, IF(Matrix!CP23=TRUE,Matrix!CS22, IF(Matrix!BO28,Matrix!BR28, IF(Matrix!CE28,Matrix!CH27,\"\")))))","v":""},{"$f":"'Att A'!E171","v":0},{"$f":"'Att A'!AF171","v":0},{"$f":"'Att A'!BH171","v":0},{"$f":"'Att A'!EB171","v":0},{"$f":"'Att A'!Z232","v":0},{"$f":"'Att A'!AK232","v":0},{"$f":"'Att A'!AT232","v":0},{"$f":"'Att A'!CK232","v":0},{"$f":"'Att A'!CV232","v":0},{"$f":"'Att A'!DG232","v":0},{"$f":"'Att A'!DN232","v":0},{"$f":"'Att A'!EB232","v":0},{"$f":"'Att A'!EH232","v":0},{"$f":"'Att A'!EO232","v":0}]
[{"$f":"'Att A'!$AC$13","v":""},{"$f":"B1","v":""},{"$f":"'Att A'!E172","v":0},{"$f":"'Att A'!AF172","v":0},{"$f":"'Att A'!BH172","v":0},{"$f":"'Att A'!EB172","v":0},{"$f":"'Att A'!Z233","v":0},{"$f":"'Att A'!AK233","v":0},{"$f":"'Att A'!AT233","v":0},{"$f":"'Att A'!CK233","v":0},{"$f":"'Att A'!CV233","v":0},{"$f":"'Att A'!DG233","v":0},{"$f":"'Att A'!DN233","v":0},{"$f":"'Att A'!EB233","v":0},{"$f":"'Att A'!EH233","v":0},{"$f":"'Att A'!EO233","v":0}]
[{"$f":"'Att A'!$AC$13","v":""},{"$f":"B1","v":""},{"$f":"'Att A'!E173","v":0},{"$f":"'Att A'!AF173","v":0},{"$f":"'Att A'!BH173","v":0},{"$f":"'Att A'!EB173","v":0},{"$f":"'Att A'!Z234","v":0},{"$f":"'Att A'!AK234","v":0},{"$f":"'Att A'!AT234","v":0},{"$f":"'Att A'!CK234","v":0},{"$f":"'Att A'!CV234","v":0},{"$f":"'Att A'!DG234","v":0},{"$f":"'Att A'!DN234","v":0},{"$f":"'Att A'!EB234","v":0},{"$f":"'Att A'!EH234","v":0},{"$f":"'Att A'!EO234","v":0}]
[{"$f":"'Att A'!$AC$13","v":""},{"$f":"B1","v":""},{"$f":"'Att A'!E174","v":0},{"$f":"'Att A'!AF174","v":0},{"$f":"'Att A'!BH174","v":0},{"$f":"'Att A'!EB174","v":0},{"$f":"'Att A'!Z235","v":0},{"$f":"'Att A'!AK235","v":0},{"$f":"'Att A'!AT235","v":0},{"$f":"'Att A'!CK235","v":0},{"$f":"'Att A'!CV235","v":0},{"$f":"'Att A'!DG235","v":0},{"$f":"'Att A'!DN235","v":0},{"$f":"'Att A'!EB235","v":0},{"$f":"'Att A'!EH235","v":0},{"$f":"'Att A'!EO235","v":0}]
[{"$f":"'Att A'!$AC$13","v":""},{"$f":"B1","v":""},{"$f":"'Att A'!E175","v":0},{"$f":"'Att A'!AF175","v":0},{"$f":"'Att A'!BH175","v":0},{"$f":"'Att A'!EB175","v":0},{"$f":"'Att A'!Z236","v":0},{"$f":"'Att A'!AK236","v":0},{"$f":"'Att A'!AT236","v":0},{"$f":"'Att A'!CK236","v":0},{"$f":"'Att A'!CV236","v":0},{"$f":"'Att A'!DG236","v":0},{"$f":"'Att A'!DN236","v":0},{"$f":"'Att A'!EB236","v":0},{"$f":"'Att A'!EH236","v":0},{"$f":"'Att A'!EO236","v":0}]
[{"$f":"'Att A'!$AC$13","v":""},{"$f":"B1","v":""},{"$f":"'Att A'!E176","v":0},{"$f":"'Att A'!AF176","v":0},{"$f":"'Att A'!BH176","v":0},{"$f":"'Att A'!EB176","v":0},{"$f":"'Att A'!Z237","v":0},{"$f":"'Att A'!AK237","v":0},{"$f":"'Att A'!AT237","v":0},{"$f":"'Att A'!CK237","v":0},{"$f":"'Att A'!CV237","v":0},{"$f":"'Att A'!DG237","v":0},{"$f":"'Att A'!DN237","v":0},{"$f":"'Att A'!EB237","v":0},{"$f":"'Att A'!EH237","v":0},{"$f":"'Att A'!EO237","v":0}]
[{"$f":"'Att A'!$AC$13","v":""},{"$f":"B1","v":""},{"$f":"'Att A'!E177","v":0},{"$f":"'Att A'!AF177","v":0},{"$f":"'Att A'!BH177","v":0},{"$f":"'Att A'!EB177","v":0},{"$f":"'Att A'!Z238","v":0},{"$f":"'Att A'!AK238","v":0},{"$f":"'Att A'!AT238","v":0},{"$f":"'Att A'!CK238","v":0},{"$f":"'Att A'!CV238","v":0},{"$f":"'Att A'!DG238","v":0},{"$f":"'Att A'!DN238","v":0},{"$f":"'Att A'!EB238","v":0},{"$f":"'Att A'!EH238","v":0},{"$f":"'Att A'!EO238","v":0}]
[{"$f":"'Att A'!$AC$13","v":""},{"$f":"B1","v":""},{"$f":"'Att A'!E178","v":0},{"$f":"'Att A'!AF178","v":0},{"$f":"'Att A'!BH178","v":0},{"$f":"'Att A'!EB178","v":0},{"$f":"'Att A'!Z239","v":0},{"$f":"'Att A'!AK239","v":0},{"$f":"'Att A'!AT239","v":0},{"$f":"'Att A'!CK239","v":0},{"$f":"'Att A'!CV239","v":0},{"$f":"'Att A'!DG239","v":0},{"$f":"'Att A'!DN239","v":0},{"$f":"'Att A'!EB239","v":0},{"$f":"'Att A'!EH239","v":0},{"$f":"'Att A'!EO239","v":0}]
[{"$f":"'Att A'!$AC$13","v":""},{"$f":"B1","v":""},{"$f":"'Att A'!E179","v":0},{"$f":"'Att A'!AF179","v":0},{"$f":"'Att A'!BH179","v":0},{"$f":"'Att A'!EB179","v":0},{"$f":"'Att A'!Z240","v":0},{"$f":"'Att A'!AK240","v":0},{"$f":"'Att A'!AT240","v":0},{"$f":"'Att A'!CK240","v":0},{"$f":"'Att A'!CV240","v":0},{"$f":"'Att A'!DG240","v":0},{"$f":"'Att A'!DN240","v":0},{"$f":"'Att A'!EB240","v":0},{"$f":"'Att A'!EH240","v":0},{"$f":"'Att A'!EO240","v":0}]
[{"$f":"'Att A'!$AC$13","v":""},{"$f":"B1","v":""},{"$f":"'Att A'!E180","v":0},{"$f":"'Att A'!AF180","v":0},{"$f":"'Att A'!BH180","v":0},{"$f":"'Att A'!EB180","v":0},{"$f":"'Att A'!Z241","v":0},{"$f":"'Att A'!AK241","v":0},{"$f":"'Att A'!AT241","v":0},{"$f":"'Att A'!CK241","v":0},{"$f":"'Att A'!CV241","v":0},{"$f":"'Att A'!DG241","v":0},{"$f":"'Att A'!DN241","v":0},{"$f":"'Att A'!EB241","v":0},{"$f":"'Att A'!EH241","v":0},{"$f":"'Att A'!EO241","v":0}]
[{"$f":"'Att A'!$AC$13","v":""},{"$f":"B1","v":""},{"$f":"'Att A'!E181","v":0},{"$f":"'Att A'!AF181","v":0},{"$f":"'Att A'!BH181","v":0},{"$f":"'Att A'!EB181","v":0},{"$f":"'Att A'!Z242","v":0},{"$f":"'Att A'!AK242","v":0},{"$f":"'Att A'!AT242","v":0},{"$f":"'Att A'!CK242","v":0},{"$f":"'Att A'!CV242","v":0},{"$f":"'Att A'!DG242","v":0},{"$f":"'Att A'!DN242","v":0},{"$f":"'Att A'!EB242","v":0},{"$f":"'Att A'!EH242","v":0},{"$f":"'Att A'!EO242","v":0}]
[{"$f":"'Att A'!$AC$13","v":""},{"$f":"B1","v":""},{"$f":"'Att A'!E182","v":0},{"$f":"'Att A'!AF182","v":0},{"$f":"'Att A'!BH182","v":0},{"$f":"'Att A'!EB182","v":0},{"$f":"'Att A'!Z243","v":0},{"$f":"'Att A'!AK243","v":0},{"$f":"'Att A'!AT243","v":0},{"$f":"'Att A'!CK243","v":0},{"$f":"'Att A'!CV243","v":0},{"$f":"'Att A'!DG243","v":0},{"$f":"'Att A'!DN243","v":0},{"$f":"'Att A'!EB243","v":0},{"$f":"'Att A'!EH243","v":0},{"$f":"'Att A'!EO243","v":0}]
[{"$f":"'Att A'!$AC$13","v":""},{"$f":"B1","v":""},{"$f":"'Att A'!E183","v":0},{"$f":"'Att A'!AF183","v":0},{"$f":"'Att A'!BH183","v":0},{"$f":"'Att A'!EB183","v":0},{"$f":"'Att A'!Z244","v":0},{"$f":"'Att A'!AK244","v":0},{"$f":"'Att A'!AT244","v":0},{"$f":"'Att A'!CK244","v":0},{"$f":"'Att A'!CV244","v":0},{"$f":"'Att A'!DG244","v":0},{"$f":"'Att A'!DN244","v":0},{"$f":"'Att A'!EB244","v":0},{"$f":"'Att A'!EH244","v":0},{"$f":"'Att A'!EO244","v":0}]
[{"$f":"'Att A'!$AC$13","v":""},{"$f":"B1","v":""},{"$f":"'Att A'!E184","v":0},{"$f":"'Att A'!AF184","v":0},{"$f":"'Att A'!BH184","v":0},{"$f":"'Att A'!EB184","v":0},{"$f":"'Att A'!Z245","v":0},{"$f":"'Att A'!AK245","v":0},{"$f":"'Att A'!AT245","v":0},{"$f":"'Att A'!CK245","v":0},{"$f":"'Att A'!CV245","v":0},{"$f":"'Att A'!DG245","v":0},{"$f":"'Att A'!DN245","v":0},{"$f":"'Att A'!EB245","v":0},{"$f":"'Att A'!EH245","v":0},{"$f":"'Att A'!EO245","v":0}]
[{"$f":"'Att A'!$AC$13","v":""},{"$f":"B1","v":""},{"$f":"'Att A'!E185","v":0},{"$f":"'Att A'!AF185","v":0},{"$f":"'Att A'!BH185","v":0},{"$f":"'Att A'!EB185","v":0},{"$f":"'Att A'!Z246","v":0},{"$f":"'Att A'!AK246","v":0},{"$f":"'Att A'!AT246","v":0},{"$f":"'Att A'!CK246","v":0},{"$f":"'Att A'!CV246","v":0},{"$f":"'Att A'!DG246","v":0},{"$f":"'Att A'!DN246","v":0},{"$f":"'Att A'!EB246","v":0},{"$f":"'Att A'!EH246","v":0},{"$f":"'Att A'!EO246","v":0}]
[{"$f":"'Att A'!$AC$13","v":""},{"$f":"B1","v":""},{"$f":"'Att A'!E186","v":0},{"$f":"'Att A'!AF186","v":0},{"$f":"'Att A'!BH186","v":0},{"$f":"'Att A'!EB186","v":0},{"$f":"'Att A'!Z247","v":0},{"$f":"'Att A'!AK247","v":0},{"$f":"'Att A'!AT247","v":0},{"$f":"'Att A'!CK247","v":0},{"$f":"'Att A'!CV247","v":0},{"$f":"'Att A'!DG247","v":0},{"$f":"'Att A'!DN247","v":0},{"$f":"'Att A'!EB247","v":0},{"$f":"'Att A'!EH247","v":0},{"$f":"'Att A'!EO247","v":0}]
[{"$f":"'Att A'!$AC$13","v":""},{"$f":"+B1","v":""},{"$f":"'Att A'!E187","v":0},{"$f":"'Att A'!AF187","v":0},{"$f":"'Att A'!BH187","v":0},{"$f":"'Att A'!EB187","v":0},{"$f":"'Att A'!Z248","v":0},{"$f":"'Att A'!AK248","v":0},{"$f":"'Att A'!AT248","v":0},{"$f":"'Att A'!CK248","v":0},{"$f":"'Att A'!CV248","v":0},{"$f":"'Att A'!DG248","v":0},{"$f":"'Att A'!DN248","v":0},{"$f":"'Att A'!EB248","v":0},{"$f":"'Att A'!EH248","v":0},{"$f":"'Att A'!EO248","v":0}]
[{"$f":"'Att A'!$AC$13","v":""},{"$f":"B1","v":""},{"$f":"'Att A'!E188","v":0},{"$f":"'Att A'!AF188","v":0},{"$f":"'Att A'!BH188","v":0},{"$f":"'Att A'!EB188","v":0},{"$f":"'Att A'!Z249","v":0},{"$f":"'Att A'!AK249","v":0},{"$f":"'Att A'!AT249","v":0},{"$f":"'Att A'!CK249","v":0},{"$f":"'Att A'!CV249","v":0},{"$f":"'Att A'!DG249","v":0},{"$f":"'Att A'!DN249","v":0},{"$f":"'Att A'!EB249","v":0},{"$f":"'Att A'!EH249","v":0},{"$f":"'Att A'!EO249","v":0}]

{"sheet":"Att D","index":4,"n_rows":114,"n_cols":126,"rows_kept":114,"cut":false,"hidden":false,"merged":[[30,3,32,58],[30,61,32,122],[0,2,2,123],[3,2,5,123],[6,2,8,123],[25,3,27,27],[25,28,27,122],[61,3,64,71],[61,72,64,85],[61,86,64,122],[33,3,34,24],[33,61,34,88],[36,3,38,30],[36,33,38,89],[39,4,40,14],[39,34,40,45],[42,3,49,122],[52,3,57,122],[58,3,60,71],[58,72,60,85],[58,86,60,122],[65,3,68,71],[65,72,68,85],[65,86,68,122],[69,3,72,71],[69,72,72,85],[69,86,72,122],[73,3,76,71],[73,72,76,85],[73,86,76,122],[78,3,85,122],[86,3,90,43],[86,44,90,84],[86,85,90,122],[97,3,100,43],[97,44,100,64],[97,65,100,84],[97,85,100,103],[97,104,100,122],[91,3,96,43],[91,44,96,64],[91,65,96,84],[91,85,96,103],[91,104,96,122],[105,3,108,43],[105,44,108,64],[105,65,108,84],[105,85,108,103],[105,104,108,122],[101,3,104,43],[101,44,104,64],[101,65,104,84],[101,85,104,103],[101,104,104,122],[113,3,116,43],[113,44,116,64],[113,65,116,84],[113,85,116,103],[113,104,116,122],[109,3,112,43],[109,44,112,64],[109,65,112,84],[109,85,112,103],[109,104,112,122]]}
[null,null,"Attachment D - Relocation and Real Property Acquisition"]
[]
[]
[null,null,"HOME Annual Performance Report"]
[]
[]
[null,null,"Reporting Period July 1, 2024 through June 30, 2025"]
[]
[null,null,null,null,null,null,null,null,null,null,null,null,null,null,null,null,null,null,null,null,null,null,null,null,null,null,null,null,null,null,null,null,null,null,null,null,null,null,null,null,null,null,null,null,null,null,null,null,null,null,null,null,null,null,null,null,null,null,null,null,null,null,null,null,null,null,null,null,null,null,null,null,null,null,null,null,null,null,null,null,null,null,null,null,null,null,null,null,null,null,null,null,null,null,null,null,null,null,null,null,null,null,null,null,null,null,null,null,null,null,null,null,null,null,null,null,null,null,null,null,null,null,null,null,null,"PAGE 1"]
[]
[]
[]
[]
[]
[]
[]
[]
[]
[]
[]
[]
[]
[]
[]
[]
[null,null,null,"HOME Award Recipient",null,null,null,null,null,null,null,null,null,null,null,null,null,null,null,null,null,null,null,null,null,null,null,null,{"$f":"IF(Matrix!E24=0,\"\",Matrix!E24)","v":""}]
[]
[]
[]
[]
[null,null,null,{"$f":"IF(Matrix!$HI$45=2,Matrix!DD24,\"\")","v":""},null,null,null,null,null,null,null,null,null,null,null,null,null,null,null,null,null,null,null,null,null,null,null,null,null,null,null,null,null,null,null,null,null,null,null,null,null,null,null,null,null,null,null,null,null,null,null,null,null,null,null,null,null,null,null,null,null,{"$f":"IF(Matrix!$HI$45=2,Matrix!DD35,\"\")","v":""}]
[]
[]
[null,null,null,"Preparer's Name",null,null,null,null,null,null,null,null,null,null,null,null,null,null,null,null,null,null,null,null,null,null,null,null,null,null,null,null,null,null,null,null,null,null,null,null,null,null,null,null,null,null,null,null,null,null,null,null,null,null,null,null,null,null,null,null,null,"Preparer's Organization"]
[]
[]
[null,null,null,{"$f":"IF(Matrix!$HI$45=2,Matrix!$FT24,\"\")","v":""},null,null,null,null,null,null,null,null,null,null,null,null,null,null,null,null,null,null,null,null,null,null,null,null,null,null,null,null,null,{"$f":"IF(Matrix!$HI$45=2,Matrix!FT35,\"\")","v":""}]
[]
[]
[null,null,null,null,"Phone",null,null,null,null,null,null,null,null,null,null,null,null,null,null,null,null,null,null,null,null,null,null,null,null,null,null,null,null,null,"Email"]
[]
[]
[null,null,null,"Complete this form if assisting an activity which entails acquisition of real property and/or displacement of any person, business or nonprofit organization during the reporting period. "]
[]
[]
[]
[]
[]
[]
[]
[]
[]
[null,null,null,"Table I - Real Property - Please provide the following information for all real property (land and/or buildings) either acquired or assisted by HOME funds. "]
[]
[]
[]
[]
[]
[null,null,null,null,null,null,null,null,null,null,null,null,null,null,null,null,null,null,null,null,null,null,null,null,null,null,null,null,null,null,null,null,null,null,null,null,null,null,null,null,null,null,null,null,null,null,null,null,null,null,null,null,null,null,null,null,null,null,null,null,null,null,null,null,null,null,null,null,null,null,null,null,"Number",null,null,null,null,null,null,null,null,null,null,null,null,null,"Cost"]
[]
[]
[null,null,null,"Properties Acquired (number and purchase price)"]
[]
[]
[]
[null,null,null,"Businesses Displaced Permanently"]
[]
[]
[]
[null,null,null,"Nonprofit Organizations Displaced Permanently"]
[]
[]
[]
[null,null,null,"Households Temporarily Relocated (less than 12 months)"]
[]
[]
[]
[]
[null,null,null,"Table II - Permanent Displacements Only - Provide information on any households permanently displaced as a result of real property (land and /or buildings) either as a result of acquisition, rehabilitation or demolition by HOME Funds."]
[]
[]
[]
[]
[]
[]
[]
[null,null,null,"Households Displaced Permanently Race/Ethnicity Group",null,null,null,null,null,null,null,null,null,null,null,null,null,null,null,null,null,null,null,null,null,null,null,null,null,null,null,null,null,null,null,null,null,null,null,null,null,null,null,null,"Hispanic Ethnicity",null,null,null,null,null,null,null,null,null,null,null,null,null,null,null,null,null,null,null,null,null,null,null,null,null,null,null,null,null,null,null,null,null,null,null,null,null,null,null,null,"Non-Hispanic Ethnicity"]
[]
[]
[]
[]
[null,null,null,"Race",null,null,null,null,null,null,null,null,null,null,null,null,null,null,null,null,null,null,null,null,null,null,null,null,null,null,null,null,null,null,null,null,null,null,null,null,null,null,null,null,"Number of Households Displaced",null,null,null,null,null,null,null,null,null,null,null,null,null,null,null,null,null,null,null,null,"Relocation Cost",null,null,null,null,null,null,null,null,null,null,null,null,null,null,null,null,null,null,null,"Number of Households Displaced ",null,null,null,null,null,null,null,null,null,null,null,null,null,null,null,null,null,null,"Relocation Cost"]
[]
[]
[]
[]
[]
[null,null,null,"Alaskan Native or American Indian "]
[]
[]
[]
[null,null,null,"Asian or Pacific Islander"]
[]
[]
[]
[null,null,null,"Black or African American"]
[]
[]
[]
[null,null,null,"White"]
[]
[]
[]
[null,null,null,"Other"]

{"sheet":"Link Data D","index":5,"n_rows":4,"n_cols":30,"rows_kept":4,"cut":false,"hidden":true,"merged":[[1,26,1,27],[1,28,1,29],[0,10,0,19],[0,20,0,29],[1,10,1,11],[1,12,1,13],[1,14,1,15],[1,16,1,17],[1,18,1,19],[1,20,1,21],[1,22,1,23],[1,24,1,25]]}
[null,null,null,null,null,null,null,null,null,null,"Hispanic",null,null,null,null,null,null,null,null,null,"Non-Hispanic"]
[null,null,null,null,null,null,null,null,null,null,"Alaskan Native or American Indian",null,"Asian",null,"Black or African American",null,"White",null,"Other",null,"Alaskan Native or American Indian",null,"Asian",null,"Black or African American",null,"White",null,"Other"]
["HOME Recipient","HR Type","Property Acquired","Cost","Business Displaced","Cost","Nonprofit Organization Displaced Permanently","Cost","Household Temporary Relocated","Cost","# HH Displaced","Relocation Cost","# HH Displaced","Relocation Cost","# HH Displaced","Relocation Cost","# HH Displaced","Relocation Cost","# HH Displaced","Relocation Cost","# HH Displaced","Relocation Cost","# HH Displaced","Relocation Cost","# HH Displaced","Relocation Cost","# HH Displaced","Relocation Cost","# HH Displaced","Relocation Cost"]
[{"$f":"'Att D'!AC26","v":""},{"$f":"IF(Matrix!BO23=TRUE,Matrix!BR22, IF(Matrix!BZ23=TRUE,Matrix!CD22, IF(Matrix!CP23=TRUE,Matrix!CS22, IF(Matrix!BO28,Matrix!BR28, IF(Matrix!CE28,Matrix!CH27,\"\")))))","v":""},{"$f":"'Att D'!BU62","v":0},{"$f":"'Att D'!CI62","v":0},{"$f":"'Att D'!BU66","v":0},{"$f":"'Att D'!CI66","v":0},{"$f":"'Att D'!BU70","v":0},{"$f":"'Att D'!CI70","v":0},{"$f":"'Att D'!BU74","v":0},{"$f":"'Att D'!CI74","v":0},{"$f":"'Att D'!AS98","v":0},{"$f":"'Att D'!BN98","v":0},{"$f":"'Att D'!AS102","v":0},{"$f":"'Att D'!BN102","v":0},{"$f":"'Att D'!AS106","v":0},{"$f":"'Att D'!BN106","v":0},{"$f":"'Att D'!AS110","v":0},{"$f":"'Att D'!BN110","v":0},{"$f":"'Att D'!AS114","v":0},{"$f":"'Att D'!BN114","v":0},{"$f":"'Att D'!CH98","v":0},{"$f":"'Att D'!DA98","v":0},{"$f":"'Att D'!CH102","v":0},{"$f":"'Att D'!DA102","v":0},{"$f":"'Att D'!CH106","v":0},{"$f":"'Att D'!DA106","v":0},{"$f":"'Att D'!CH110","v":0},{"$f":"'Att D'!DA110","v":0},{"$f":"'Att D'!CH114","v":0},{"$f":"'Att D'!DA114","v":0}]